Workbook

Sheet تحليلى المبيعات
A1: الكود | B1: الصنف | C1: الكميه | D1: السعر | E1: القيمه | F1: الخصم | G1: الصافى | H1: المندوب | I1: العميل | J1: رقم الفاتوره | K1: التاريخ | L1: نسبه الخصم
A2: 411010082 | B2: مساحة زجاج الهلال 30 سم معدن | C2: 12 | D2: 11.86 | E2: =C2*D2 -> 142.32 | F2: =E2*0.07 -> 9.9624 | G2: =E2-F2 -> 132.3576 | H2: احمد سمير | I2: طارق | J2: 906 | K2: 2022-01-08
A3: 411012509 | B3: مساحة زجاج نوفا بالكاوتشه | C3: 12 | D3: 15.3672 | E3: =C3*D3 -> 184.4064 | F3: =E3*0.07 -> 12.908448 | G3: =E3-F3 -> 171.497952 | H3: احمد سمير | I3: طارق | J3: 906 | K3: 2022-01-08
E4: 0 | F4: 0 | G4: 0
E5: 0 | F5: 0 | G5: 0
E6: 0 | F6: 0 | G6: 0
E7: 0 | F7: 0 | G7: 0
E8: 0 | F8: 0 | G8: 0
E9: 0 | F9: 0 | G9: 0
E10: 0 | F10: 0 | G10: 0
E11: 0 | F11: 0 | G11: 0
E12: 0 | F12: 0 | G12: 0
E13: 0 | F13: 0 | G13: 0
E14: 0 | F14: 0 | G14: 0
E15: 0 | F15: 0 | G15: 0
E16: 0 | F16: 0 | G16: 0
E17: 0 | F17: 0 | G17: 0
E18: 0 | F18: 0 | G18: 0
E19: 0 | F19: 0 | G19: 0
E20: 0 | F20: 0 | G20: 0
E21: 0 | F21: 0 | G21: 0
E22: 0 | F22: 0 | G22: 0
E722: =C722*D722 -> 0 | F722: =E722*7/100 -> 0 | G722: =E722-F722 -> 0 | L722: =F722/E722 -> 
E723: 0 | F723: 0 | G723: 0
E724: 0 | F724: 0 | G724: 0
E725: 0 | F725: 0 | G725: 0
E726: 0 | F726: 0 | G726: 0
E727: 0 | F727: 0 | G727: 0
E728: 0 | F728: 0 | G728: 0
E729: 0 | F729: 0 | G729: 0
E730: 0 | F730: 0 | G730: 0
E731: 0 | F731: 0 | G731: 0
E732: 0 | F732: 0 | G732: 0

Sheet بيع الهلال (2)
D1: المندوب | M1: شهر يوليو | P1: احمد سمير | Q1: احمد سمير | R1: عمرو | S1: عمرو | T1: عمرو | U1: عمرو | V1: عمرو | W1: احمد سمير | X1: احمد سمير | Y1: عمرو | Z1: عمرو | AA1: عمرو | AB1: عمرو | AC1: عمرو | AD1: عمرو | AE1: عمرو | AF1: عمرو | AG1: عمرو | AH1: عمرو | AI1: احمد سمير | AJ1: احمد سمير | AK1: احمد سمير | AL1: احمد سمير | AM1: احمد سمير | AN1: عمرو | AO1: احمد سمير | AP1: احمد سمير | AQ1: احمد سمير | AR1: احمد سمير | AS1: احمد سمير | AT1: احمد سمير | AU1: احمد سمير | AV1: احمد سمير | AW1: احمد سمير | AX1: احمد سمير | AY1: احمد سمير | AZ1: احمد سمير | BA1: احمد سمير | BB1: احمد سمير | BC1: احمد سمير | BD1: احمد سمير | BE1: احمد سمير | BF1: احمد سمير | BG1: عمرو | BH1: عمرو | BI1: عمرو | BJ1: عمرو | BK1: عمرو | BL1: عمرو | BM1: عمرو | BN1: عمرو | BO1: عمرو | BP1: عمرو | BQ1: عمرو | BR1: احمد سمير | BS1: احمد سمير | BT1: احمد سمير | BU1: احمد سمير | BV1: احمد سمير | BW1: عمرو | BX1: عمرو | BY1: عمرو | BZ1: عمرو | CA1: عمرو | CB1: عمرو | CC1: عمرو | CD1: عمرو | CE1: عمرو | CF1: عمرو | CG1: عمرو | CH1: عمرو | CI1: احمد سمير | CJ1: عمرو | CK1: عمرو | CL1: عمرو | CM1: عمرو | CN1: عمرو | CO1: عمرو | CP1: احمد سمير | CQ1: احمد سمير | CR1: احمد سمير | CS1: احمد سمير | CT1: احمد سمير | CU1: عمرو | CV1: عمرو | CW1: عمرو | CX1: عمرو | CY1: احمد سمير | CZ1: احمد سمير | DA1: احمد سمير | DB1: عمرو | DC1: عمرو | DD1: عمرو | DE1: عمرو | DF1: عمرو | DG1: عمرو | DH1: عمرو | DI1: عمرو | DJ1: عمرو | DK1: احمد سمير | DL1: احمد سمير | DM1: احمد سمير | DN1: احمد سمير | DO1: احمد سمير | DP1: احمد سمير | DQ1: احمد سمير | DR1: احمد سمير | DS1: احمد سمير | DT1: احمد سمير | DU1: احمد سمير | DV1: عمرو | DW1: عمرو | DX1: عمرو | DY1: عمرو | DZ1: احمد سمير | EA1: احمد سمير | EB1: عمرو | EC1: عمرو | ED1: عمرو | EE1: عمرو | EF1: عمرو | EG1: عمرو | EH1: عمرو | EI1: احمد سمير | EJ1: احمد سمير | EK1: احمد سمير | EL1: احمد سمير | EM1: عمرو | EN1: عمرو | EO1: عمرو | EP1: عمرو | EQ1: عمرو | ER1: عمرو | ES1: احمد سمير | ET1: احمد سمير | EU1: احمد سمير | EV1: احمد سمير | EW1: احمد سمير | EX1: عمرو | EY1: عمرو | EZ1: عمرو | FA1: عمرو | FB1: عمرو | FC1: احمد سمير | FD1: احمد سمير | FE1: احمد سمير | FF1: احمد سمير | FG1: عمرو | FH1: عمرو | FI1: عمرو | FJ1: احمد سمير | FK1: عمرو | FL1: عمرو | FM1: عمرو | FN1: عمرو | FO1: عمرو | FP1: عمرو | FQ1: احمد سمير | FR1: عمرو | FS1: عمرو | FT1: عمرو | FU1: جملة | FV1: عمرو | FW1: عمرو | FX1: احمد سمير | FY1: احمد سمير | FZ1: احمد سمير
D2: العميل | P2: طارق | Q2: الشعراوى | R2: هايبر دلتا | S2: ابو كامل | T2: محمد الصعيدى | U2: المصطفي | V2: الحاج عيد | W2: نادر | X2: محمد طيبه | Y2: عم حسان | Z2: حسن ابو شهد | AA2: الاندلس | AB2: معرض الدكتور | AC2: عم حسن | AD2: علي عثمان | AE2: المهندس | AF2: المتميز | AG2: ابو يوسف | AH2: عيد جادو | AI2: حموده | AJ2: النمر | AK2: جوده | AL2: ابو الورد | AM2: اريج | AN2: الحديدى | AO2: كاستيلو | AP2: زمزم | AQ2: شوكه وسكينه | AR2: الشيخ | AS2: موناليزا | AT2: المصرى | AU2: التقي | AV2: ابو شريف | AW2: الصعيدى | AX2: محمد رمضان | AY2: روعه | AZ2: شبانة | BA2: مسلم | BB2: السلطانه | BC2: السلطانه | BD2: المصري | BE2: البيت بيتك | BF2: الدلتا | BG2: ابو ادم | BH2: وائل | BI2: عم عصام | BJ2: المصطفى | BK2: كارمن | BL2: حموده خميس | BM2: على عثمان | BN2: الاسلاميه | BO2: تو إم | BP2: ابو اليزيد الجبالى | BQ2: السيد الشرقاوى | BR2: الحجرى | BS2: مطاوع | BT2: كساب | BU2: مصطفى | BV2: الملكه | BW2: ابو على | BX2: حسين عامر | BY2: جمال عاطف | BZ2: ابو مريم | CA2: صلاح دكوس | CB2: علاء البحراوى | CC2: ام ساره | CD2: عم حسان | CE2: عم عبد الفتاح | CF2: البركه | CG2: المصطفي | CH2: عمب ابراهيم البدري | CI2: روائع نور | CJ2: ابو ادم | CK2: احلى رغوه | CL2: معرض التوحيد | CM2: ام خلود | CN2: سيد العربي | CO2: ابو رحمه | CP2: المنر | CQ2: حوده | CR2: على جوده | CS2: البنا | CT2: البنا | CU2: ابو مروه | CV2: بكر | CW2: وليد العمده | CX2: سامي | CY2: مالك دويدار | CZ2: عبد الرحمن | DA2: وائل | DB2: مالك | DC2: بيت العيله | DD2: الكوثر | DE2: مهاب الحضري | DF2: محمد الشايب | DG2: المدينه المنوره | DH2: على اد الايد | DI2: الاسلاميه | DJ2: القاسم | DK2: الزهراء | DL2: زمزم | DM2: الامانه | DN2: الشيخ | DO2: رامي | DP2: كاستيلو | DQ2: السلام | DR2: المظلوم | DS2: المجد | DT2: الحكيم | DU2: المركز التركى | DV2: جمال عرفه | DW2: ام ساره | DX2: عم حسان | DY2: مصطفى نصار | DZ2: يوسف | EA2: ابراهيم الكفراوى | EB2: الخليج | EC2: ام سوس | ED2: الحاج رمزى | EE2: ابو يوسف | EF2: معرض الشيف | EG2: اسواق عمر | EH2: معرض الرحمه | EI2: الحاج شحته | EJ2: محمد رضا | EK2: ابو شبل | EL2: النقي | EM2: معرض السماك | EN2: حمزه لمنظفات | EO2: ايمن الظواهرى | EP2: معرض الاصيل | EQ2: خليل سليمان | ER2: طارق العمده | ES2: هيثم السعدنى | ET2: هيثم السعدنى | EU2: على جوده | EV2: البنا | EW2: بيتك | EX2: ابو ادم | EY2: معرض الشهد | EZ2: جمال عاطف | FA2: ابو احمد | FB2: ابو ربيع | FC2: زلط | FD2: كريستال | FE2: الحجرى | FF2: الزهراء | FG2: معرض منار | FH2: معرض فرنسا | FI2: الحاجه هانم | FJ2: معرض رامى | FK2: الحاج عبوده | FL2: عم سمير | FM2: الايمان | FN2: ابو على | FO2: ايمن بركات | FP2: حسني | FQ2: عباد الرحمن | FR2: وائل المصطفي | FS2: اخر العنقود | FT2: صلاح | FU2: السيد الشرقاوى | FV2: شركة البركة | FW2: معرض الاوقاف | FX2: بيت العروسه | FY2: محمد رمضان | FZ2: البصار
D3: رقم الفاتوره | P3: 906 | Q3: 907 | R3: 303 | S3: 307 | T3: 306 | U3: 305 | V3: 308 | W3: 908 | X3: 909 | Y3: 310 | Z3: 311 | AA3: 312 | AB3: 313 | AC3: 314 | AD3: 315 | AE3: 316 | AF3: 317 | AG3: 318 | AH3: 319 | AI3: 911 | AJ3: 912 | AK3: 914 | AL3: 916 | AM3: 917 | AO3: 918 | AP3: 919 | AQ3: 920 | AR3: 921 | AS3: 922 | AT3: 923 | AU3: 924-925 | AV3: 926 | AW3: 928 | AX3: 929 | AY3: 931 | AZ3: 932 | BA3: 934 | BB3: 935 | BC3: 936 | BD3: 937 | BE3: 938 | BF3: 940 | BG3: 327 | BH3: 326 | BI3: 325 | BJ3: 324 | BK3: 323 | BL3: 322 | BM3: 328 | BN3: 329 | BP3: 331 | BR3: 941 | BS3: 943 | BT3: 944 | BU3: 945 | BV3: 946 | BW3: 337 | BX3: 336 | BY3: 334 | BZ3: 333 | CA3: 341 | CB3: 340 | CC3: 339 | CD3: 336 | CE3: 338 | CF3: 344 | CG3: 343 | CH3: 342 | CI3: 256 | CJ3: 345 | CK3: 346 | CL3: 347 | CM3: 348 | CN3: 350 | CO3: 349 | CP3: 261 | CQ3: 262 | CR3: 264 | CS3: 265 | CT3: 266 | CU3: 152 | CV3: 153 | CW3: 154 | CX3: 155 | CY3: 269 | CZ3: 270 | DA3: 271 | DB3: 162 | DC3: 161 | DD3: 160 | DE3: 159 | DF3: 158 | DG3: 163 | DH3: 165 | DI3: 156 | DJ3: 157 | DK3: 272 | DL3: 273 | DM3: 275 | DN3: 276 | DO3: 277 | DP3: 278 | DQ3: 281 | DR3: 282 | DS3: 284 | DT3: 285 | DU3: 286 | DW3: 168 | DX3: 166 | DY3: 167 | DZ3: 288 | EA3: 289 | EB3: 176 | EC3: 170 | ED3: 171 | EE3: 172 | EF3: 173 | EG3: 174 | EH3: 175 | EI3: 290 | EJ3: 291 | EK3: 292 | EL3: 293 | EM3: 178 | EN3: 180 | EO3: 181 | EP3: 179 | EQ3: 177 | ER3: 182 | ES3: 294 | ET3: 295 | EU3: 297 | EV3: 298 | EW3: 851 | EX3: 189 | EY3: 183 | EZ3: 185 | FA3: 186 | FB3: 188 | FC3: 852 | FD3: 853 | FE3: 854 | FF3: 856 | FJ3: 857 | FK3: 194 | FL3: 195 | FM3: 196 | FN3: 197 | FO3: 198 | FP3: 199 | FQ3: 858 | FR3: 802 | FS3: 803 | FT3: 804 | FV3: 806 | FX3: 860 | FY3: 861 | FZ3: 862
A4: م | B4: كود الصنف | C4: Barcode | D4: الإسم الجديد للمنتج على التغليف و السيستم | E4: Brand | F4: العائلة | G4: الوحدة | H4: قائمة الاساسيه غير شامله الضريبه | I4: قائمة الاساسيه شامله الضريبه | J4: قائمة الجمله شامله الضريبه | K4: قائمه الاسعار بعد الزياده شامله الضريبه | L4: قائمة التجزئه شامله الضريبه | M4: قائمه الاسعار بعد الزياده شامله الضريبه | N4: قائمه الاسعار بعد الزياده شامله الضريبه 23/7/2022 | O4: قائمه الاسعار بعد الزياده شامله الضريبه 22/8/2022 | P4: 2022-08-01 | Q4: 2022-08-01 | R4: 2022-08-01 | S4: 2022-08-02 | T4: 2022-08-02 | U4: 2022-08-02 | V4: 2022-08-02 | W4: 2022-08-02 | X4: 2022-08-02 | Y4: 2022-08-03 | Z4: 2022-08-03 | AA4: 2022-08-03 | AB4: 2022-08-03 | AC4: 2022-08-03 | AD4: 2022-08-04 | AE4: 2022-08-04 | AF4: 2022-08-04 | AG4: 2022-08-04 | AH4: 2022-08-04 | AI4: 2022-08-05 | AJ4: 2022-08-05 | AK4: 2022-08-05 | AL4: 2022-08-06 | AM4: 2022-08-06 | AN4: 2022-08-07 | AO4: 2022-08-08 | AP4: 2022-08-08 | AQ4: 2022-08-08 | AR4: 2022-08-08 | AS4: 2022-08-08 | AT4: 2022-08-08 | AU4: 2022-08-09 | AV4: 2022-08-10 | AW4: 2022-08-10 | AX4: 2022-08-10 | AY4: 2022-08-10 | AZ4: 2022-08-10 | BA4: 2022-08-12 | BB4: 2022-08-12 | BC4: 2022-08-12 | BD4: 2022-08-12 | BE4: 2022-08-12 | BF4: 2022-08-12 | BG4: 2022-08-13 | BH4: 2022-08-13 | BI4: 2022-08-13 | BJ4: 2022-08-13 | BK4: 2022-08-13 | BL4: 2022-08-13 | BM4: 2022-08-14 | BN4: 2022-08-14 | BO4: 2022-08-14 | BP4: 2022-08-14 | BQ4: 2022-08-14 | BR4: 2022-08-14 | BS4: 2022-08-14 | BT4: 2022-08-14 | BU4: 2022-08-14 | BV4: 2022-08-14 | BW4: 2022-08-15 | BX4: 2022-08-15 | BY4: 2022-08-15 | BZ4: 2022-08-15 | CA4: 2022-08-16 | CB4: 2022-08-16 | CC4: 2022-08-16 | CD4: 2022-08-16 | CE4: 2022-08-16 | CF4: 2022-08-17 | CG4: 2022-08-17 | CH4: 2022-08-17 | CI4: 2022-08-17 | CJ4: 2022-08-18 | CK4: 2022-08-18 | CL4: 2022-08-18 | CM4: 2022-08-18 | CN4: 2022-08-18 | CO4: 2022-08-18 | CP4: 2022-08-18 | CQ4: 2022-08-18 | CR4: 2022-04-18 | CS4: 2022-04-18 | CT4: 2022-04-18 | CU4: 2022-08-20 | CV4: 2022-08-20 | CW4: 2022-08-20 | CX4: 2022-08-20 | CY4: 2022-08-20 | CZ4: 2022-08-20 | DA4: 2022-08-20 | DB4: 2022-08-21 | DC4: 2022-08-21 | DD4: 2022-08-21 | DE4: 2022-08-21 | DF4: 2022-08-21 | DG4: 2022-08-21 | DH4: 2022-08-21 | DI4: 2022-08-21 | DJ4: 2022-08-21 | DK4: 2022-08-21 | DL4: 2022-08-21 | DM4: 2022-08-21 | DN4: 2022-08-21 | DO4: 2022-08-21 | DP4: 2022-08-21 | DQ4: 2022-08-22 | DR4: 2022-08-22 | DS4: 2022-08-22 | DT4: 2022-08-22 | DU4: 2022-08-22 | DV4: 2022-08-22 | DW4: 2022-08-23 | DX4: 2022-08-23 | DY4: 2022-08-23 | DZ4: 2022-08-23 | EA4: 2022-08-23 | EB4: 2022-08-24 | EC4: 2022-08-24 | ED4: 2022-08-24 | EE4: 2022-08-24 | EF4: 2022-08-24 | EG4: 2022-08-24 | EH4: 2022-08-24 | EI4: 2022-08-24 | EJ4: 2022-08-24 | EK4: 2022-08-24 | EL4: 2022-08-24 | EM4: 2022-08-25 | EN4: 2022-08-25 | EO4: 2022-08-25 | EP4: 2022-08-25 | EQ4: 2022-08-25 | ER4: 2022-08-25 | ES4: 2022-08-25 | ET4: 2022-08-25 | EU4: 2022-08-25 | EV4: 2022-08-25 | EW4: 2022-08-27 | EX4: 2022-08-27 | EY4: 2022-08-27 | EZ4: 2022-08-27 | FA4: 2022-08-27 | FB4: 2022-08-27 | FC4: 2022-08-28 | FD4: 2022-08-28 | FE4: 2022-08-28 | FF4: 2022-08-28 | FG4: 2022-08-28 | FH4: 2022-08-28 | FI4: 2022-08-28 | FJ4: 2022-08-29 | FK4: 2022-08-29 | FL4: 2022-08-29 | FM4: 2022-08-29 | FN4: 2022-08-29 | FO4: 2022-08-29 | FP4: 2022-08-29 | FQ4: 2022-08-29 | FR4: 2022-08-30 | FS4: 2022-08-30 | FT4: 2022-08-30 | FU4: 2022-08-31 | FV4: 2022-08-31 | FW4: 2022-08-31 | FX4: 2022-08-31 | FY4: 2022-08-31 | FZ4: 2022-08-31 | GC4: اجمالى البيع
A5: 1 | B5: 420119132 | D5: باسكت دانتيلا مدور | E5: Helal | G5: قطعة | K5: 26.12003625 | M5: 26.12003625 | N5: 26.12003625 | O5: =N5 -> 26.12003625 | GC5: =SUM(P5:BW5) -> 0
A6: 2 | B6: 420119133 | D6: باسكت دانتيلا مربع | E6: Helal | G6: قطعة | K6: 25.698222 | M6: 25.698222 | N6: 25.698222 | O6: =N6 -> 25.698222 | GC6: 0
A7: 3 | B7: 410510072 | C7: 6222016100725 | D7: جاروف بلدوزر كبير بالكاوتشة باليد المعدن | E7: Helal | F7: فرشة بالجاروف | G7: قطعة | H7: 23.68421053 | I7: =H7+(H7*14%) -> 27 | J7: =I7-(I7*12%) -> 23.76 | K7: 29.7 | L7: =I7-(I7*7%) -> 25.11 | M7: 29.7 | N7: 29.7 | O7: =N7 -> 29.7 | ER7: 5 | GC7: 0
A8: 4 | B8: 410510351 | D8: جاروف نوفا كبير باليد+مكنسه | E8: Helal | G8: قطعة | K8: 64.9002 | L8: =I8-(I8*7%) -> 0 | M8: 64.9002 | N8: 64.9002 | O8: 64.9002 | BB8: -1 | BG8: -1 | BX8: -2 | CW8: -1 | DJ8: 12 | GC8: -2
A9: 5 | B9: 410510071 | C9: 6222016100718 | D9: جاروف هلال بالكاوتشة | E9: Helal | F9: جاروف | G9: قطعة | H9: 8.771929825 | I9: =H9+(H9*14%) -> 10 | J9: =I9-(I9*12%) -> 8.8 | K9: 11 | L9: =I9-(I9*7%) -> 9.3 | M9: 11 | N9: 11 | O9: 11 | BZ9: 12 | CI9: 24 | CO9: 12 | GC9: 0
A10: 6 | B10: 411210092 | C10: 6222016100923 | D10: جردل الهلال بيضاوي بالعصارة | E10: Helal | F10: جرادل | G10: قطعة | H10: 52.17819885 | I10: =H10+(H10*14%) -> 59.48314669 | J10: =I10-(I10*12%) -> 52.34516909 | K10: 65.43 | L10: =I10-(I10*7%) -> 55.31932642 | M10: 65.43 | N10: 65.43 | O10: 65.43 | AM10: 6 | BB10: 6 | BS10: 3 | CI10: 6 | CT10: 6 | DP10: 6 | FQ10: 7 | GC10: 15 | GH10: =BS10*N10 -> 196.29
A11: 7 | B11: 411210091 | C11: 6222016100916 | D11: جردل إسبيدو بالعصارة | E11: Helal | F11: جرادل | G11: قطعة | H11: 143.0897608 | I11: =H11+(H11*14%) -> 163.1223273 | J11: =I11-(I11*12%) -> 143.547648 | K11: 179.43 | L11: =I11-(I11*7%) -> 151.7037644 | M11: 179.43 | N11: 179.43 | O11: 179.43 | GC11: 0
A12: 8 | B12: 420718107 | C12: 6222016181076 | D12: جردل توتينز الهلال | E12: Helal | F12: جرادل | G12: قطعة | H12: 51.75438596 | I12: =H12+(H12*14%) -> 59 | J12: =I12-(I12*12%) -> 51.92 | K12: 72.61 | M12: 72.61 | N12: 72.61 | O12: 72.61 | AL12: 6 | AU12: 6 | AW12: 11 | BB12: 12 | BG12: 6 | BQ12: -2 | BS12: 3 | CE12: -3 | CF12: 9 | CH12: 8 | CI12: 6 | CN12: 6 | CR12: -6 | CV12: 6 | CX12: 12 | DP12: 6 | DS12: 6 | DX12: 12 | EF12: 12 | EW12: 6 | FQ12: 6 | FW12: 12 | FY12: 5 | GC12: 42 | GH12: =BS12*N12 -> 217.83 | GL12: =GG12*M12 -> 0 | GN12: =AU12*N12 -> 435.66
A13: 9 | B13: 411619257 | D13: جردل نوفا بدون عجل | E13: Helal | G13: قطعة | K13: 108.9042 | M13: 108.9042 | N13: 108.9042 | O13: 108.9042 | GC13: 0
A14: 10 | B14: 411218014 | D14: جردل نوفا مصفاه استانلس | E14: Helal | G14: قطعة | K14: 260.2278 | L14: =I14-(I14*7%) -> 0 | M14: 260.2278 | N14: 260.2278 | O14: 260.2278 | AD14: 12 | BM14: 12 | CI14: 2 | DI14: 15 | EF14: 3 | EK14: 1 | FM14: 3 | GC14: 24
A15: 11 | B15: 420115017 | D15: زباله كوين 8 لتر | E15: Helal | F15: جردل | G15: قطعة | I15: 56.03 | J15: =I15-(I15*12%) -> 49.3064 | K15: 61.63 | L15: =I15-(I15*7%) -> 52.1079 | M15: 61.63 | N15: 61.63 | O15: 61.63 | V15: 4 | BN15: 4 | GC15: 8
A16: 12 | B16: 420115022 | D16: زباله نوفا 22 لتر | E16: Helal | G16: قطعة | K16: 119 | L16: =I16-(I16*7%) -> 0 | M16: 119 | N16: 119 | O16: 119 | GC16: 0
A17: 13 | B17: 410610085 | C17: 6222016100855 | D17: زعافة كورة الهلال بالإريال جامبو | E17: Helal | F17: زعافة | G17: قطعة | H17: 26.31578947 | I17: =H17+(H17*14%) -> 30 | J17: =I17-(I17*12%) -> 26.4 | K17: 33 | M17: 39 | N17: 39 | O17: 39 | GC17: 0
A18: 14 | B18: 410610375 | C18: 6222016103757 | D18: زعافة كورة الهلال بالإريال مدهون 21 مللي | E18: Helal | F18: زعافة | G18: قطعة | H18: =26/1.14 -> 22.80701754 | I18: =H18+(H18*14%) -> 26 | J18: =I18-(I18*12%) -> 22.88 | K18: 27.64 | L18: =I18-(I18*7%) -> 24.18 | M18: 32 | N18: 32 | O18: 32 | Y18: 18 | AB18: 18 | AQ18: 6 | AU18: 6 | AZ18: 12 | BD18: 6 | BI18: 29 | BL18: 6 | BQ18: 118 | BR18: 6 | BS18: 6 | BT18: 12 | CD18: 36 | CH18: 6 | CI18: 36 | CO18: 7 | CQ18: 6 | CR18: 12 | CS18: 6 | CV18: 12 | CW18: 24 | CY18: 6 | CZ18: 6 | DL18: 24 | DQ18: 24 | DW18: 36 | DX18: 6 | DY18: 24 | EC18: 6 | ED18: 12 | EE18: 12 | EI18: 24 | EN18: 6 | EQ18: 12 | EZ18: 312 | FA18: 18 | FB18: 6 | FD18: 18 | FE18: 6 | FG18: 6 | FH18: 12 | FQ18: 18 | FS18: 24 | FU18: 186 | FX18: 6 | GC18: 243 | GH18: =BS18*N18 -> 192 | GN18: =AU18*N18 -> 192
A19: 15 | B19: 410610098 | C19: 6222016100985 | D19: زعافة كورة الهلال بالإريال مطبوع | E19: Helal | F19: زعافة | G19: قطعة | H19: 25.43859649 | I19: =H19+(H19*14%) -> 29 | J19: =I19-(I19*12%) -> 25.52 | K19: 31.9 | L19: 26.97 | M19: 35 | N19: 35 | O19: 35 | Q19: 24 | T19: 12 | V19: 12 | AJ19: 18 | AM19: 6 | AU19: 6 | GC19: 78 | GN19: 210
A20: 16 | B20: 410612801 | D20: زعافه نوفا | E20: Helal | G20: قطعة | K20: 49.4988 | L20: 0 | M20: 49.4988 | N20: 49.4988 | O20: 49.4988 | R20: 36 | AU20: 12 | BI20: 12 | BJ20: 12 | CC20: 12 | CI20: 12 | CR20: 12 | CU20: 12 | EK20: 12 | EU20: 24 | FJ20: 24 | FW20: 12 | GC20: 72 | GN20: 593.9856
A21: 17 | B21: 411116979 | C21: 6222016169791 | D21: سلاكة هلال جامبو ييد عكاز بلاستيك | E21: Helal | F21: سلاكة | G21: قطعة | H21: =19.95/1.14 -> 17.5 | I21: =H21+(H21*14%) -> 19.95 | J21: =I21-(I21*12%) -> 17.556 | K21: 21.95 | L21: 18.5535 | M21: 21.95 | N21: 21.95 | O21: 21.95 | AL21: 6 | AQ21: 6 | AS21: 12 | BV21: 12 | BZ21: 12 | CI21: 19 | CP21: 12 | EG21: 12 | EK21: 12 | ER21: 6 | FF21: 12 | FN21: 12 | FU21: 48 | GC21: 36
A22: 18 | B22: 411110073 | D22: سلاكه نوفا باليد بلاستيك عاديه | E22: Helal | G22: قطعة | K22: 21.888 | L22: 0 | M22: 21.888 | N22: 21.888 | O22: 21.888 | GC22: 0
A23: 19 | B23: 420916974 | D23: طقم ثلاجة نوفا مستطيل 3 علبة 1 لتر | E23: Helal | G23: قطعة | K23: 20.8962 | L23: 0 | M23: 20.8962 | N23: 20.8962 | O23: 20.8962 | GC23: 0
A24: 20 | B24: 420916978 | D24: طقم علبة ثلاجه نوفا 1000 مللى 3 علبه | E24: Helal | G24: قطعة | K24: 20.8962 | L24: 0 | M24: 20.8962 | N24: 20.8962 | O24: 20.8962 | GC24: 0
A25: 21 | B25: 420916976 | D25: طقم علبة ثلاجه نوفا 500 مللى 3 علبه | E25: Helal | G25: قطعة | K25: 13.2012 | L25: 0 | M25: 13.2012 | N25: 13.2012 | O25: 13.2012 | CW25: -2 | GC25: 0
A26: 22 | B26: 420916977 | D26: طقم علبة ثلاجه نوفا 750 مللى 3 علبه | E26: Helal | G26: قطعة | K26: 16.4958 | L26: 0 | M26: 16.4958 | N26: 16.4958 | O26: 16.4958 | GC26: 0
A27: 23 | B27: 420916975 | D27: طقم علبة ثلاجه نوفا مشكل 3 علبة | E27: Helal | G27: قطعة | K27: 16.4958 | L27: 0 | M27: 16.4958 | N27: 16.4958 | O27: 16.4958 | GC27: 0
A28: 24 | B28: 411310541 | C28: 6222016105416 | D28: غيار قطنة اسبيدو | E28: Helal | F28: موب | G28: قطعة | H28: 13.16 | I28: =H28+(H28*14%) -> 15.0024 | J28: =I28-(I28*12%) -> 13.202112 | K28: 16.5 | L28: 13.952232 | M28: 16.5 | N28: 16.5 | O28: 16.5 | GC28: 0
A29: 25 | B29: 410310111 | C29: 6222016101111 | D29: فرشة استحمام الهلال | E29: Helal | F29: فرشة استحمام | G29: قطعة | H29: 9.749728703 | I29: =H29+(H29*14%) -> 11.11469072 | J29: =I29-(I29*12%) -> 9.780927835 | K29: 12.23 | L29: 10.33666237 | M29: 12.23 | N29: 12.23 | O29: 12.23 | AQ29: 6 | BQ29: 36 | BY29: 240 | CI29: 12 | CP29: 18 | GC29: 42
A30: 26 | B30: 411619254 | D30: فرشة استحمام نوفا | E30: Helal | G30: قطعة | K30: 20.8962 | L30: 0 | M30: 20.8962 | N30: 20.8962 | O30: 20.8962 | AB30: 12 | AS30: 12 | AU30: 18 | GC30: 42 | GH30: =AB30*N30 -> 250.7544 | GN30: =AU30*N30 -> 376.1316
A31: 27 | B31: 410310336 | D31: فرشة اطباق نوفا | E31: Helal | G31: قطعة | K31: 11.001 | L31: 0 | M31: 11.001 | N31: 11.001 | O31: =N31 -> 11.001 | P31: 12 | BO31: 48 | GC31: 60
A32: 28 | B32: 510801002 | D32: فرشة الفراشه | E32: Helal | F32: فرش و مكانس | G32: قطعة | K32: 27.5 | L32: 0 | M32: 27.5 | N32: 27.5 | O32: =N32 -> 27.5 | EL32: 12 | GC32: 0 | GL32: =GG32*M32 -> 0 | GP32: 24.12 | GQ32: =GP32*1.14 -> 27.4968
A33: 29 | B33: 410110000 | C33: 6222016100008 | D33: فرشة الهلال متعددة الاغراض ( سيارات ) | E33: Helal | F33: فرش متنوعة | G33: قطعة | H33: 20.18883216 | I33: =H33+(H33*14%) -> 23.01526867 | J33: =I33-(I33*12%) -> 20.25343643 | K33: 25.32 | L33: 21.40419986 | M33: 25.32 | N33: 25.32 | O33: 25.32 | AO33: 12 | AU33: 12 | CI33: 12 | CS33: 12 | EV33: 12 | EW33: 6 | GC33: 24 | GN33: =AU33*N33 -> 303.84
A34: 30 | B34: 410110066 | C34: 6222016100664 | D34: فرشة ايديال خشنة | E34: Helal | F34: فرش و مكانس | G34: قطعة | H34: 11.58663411 | I34: =H34+(H34*14%) -> 13.20876289 | J34: =I34-(I34*12%) -> 11.62371134 | K34: 14.53 | L34: 12.28414948 | M34: 14.53 | N34: 15.98 | O34: 15.98 | AY34: 12 | EP34: 12 | ER34: 12 | GC34: 12
A35: 31 | B35: 410110065 | C35: 6222016100657 | D35: فرشة ايديال ناعمة | E35: Helal | F35: فرش و مكانس | G35: قطعة | H35: 10.62698763 | I35: =H35+(H35*14%) -> 12.1147659 | J35: =I35-(I35*12%) -> 10.66099399 | K35: 13.28 | L35: 11.26673228 | M35: 13.28 | N35: 14.61 | O35: 14.61 | AC35: 12 | AM35: 12 | FC35: 12 | GC35: 24 | GL35: =GG35*M35 -> 0
A36: 32 | B36: 410310119 | C36: 6222016101197 | D36: فرشة أحواض الهلال | E36: Helal | F36: فرشة أحواض | G36: قطعة | H36: 10.34062135 | I36: =H36+(H36*14%) -> 11.78830834 | J36: =I36-(I36*12%) -> 10.37371134 | K36: 12.97 | L36: 10.96312676 | M36: 12.97 | N36: 12.97 | O36: 12.97 | AJ36: 24 | CI36: 12 | CS36: 12 | GC36: 24 | GL36: =GG36*M36 -> 0 | GM36: =#REF!+#REF!+BR36+BK36+BJ36+#REF!+#REF!+AX36+AG36+AB36+#REF!+T36+R36+GL36 ->  | GP36: 11.38 | GQ36: =GP36*1.14 -> 12.9732
A37: 33 | B37: 410310160 | C37: 6222016101609 | D37: فرشة أطباق الهلال | E37: Helal | F37: فرشة أطباق | G37: قطعة | H37: 7.01754386 | I37: =H37+(H37*14%) -> 8 | J37: =I37-(I37*12%) -> 7.04 | K37: 8.8 | L37: 7.44 | M37: 8.8 | N37: 8.8 | O37: 8.8 | CI37: 12 | GC37: =SUM(P37:BW37) -> 0
A38: 34 | B38: 410534089 | D38: فرشة بالجاروف نوفا كبير | E38: Helal | G38: قطعة | K38: 16.4958 | L38: 0 | M38: 16.4958 | N38: 16.4958 | O38: =15.51*1.14 -> 17.6814 | DF38: 24 | EH38: 24 | EM38: 12 | EX38: 6 | GC38: 0
A39: 35 | B39: 410512903 | C39: 6222016129030 | D39: فرشة بالجاروف باليد الهلال | E39: Helal | F39: فرشة بالجاروف | G39: قطعة | H39: 42.98245614 | I39: =H39+(H39*14%) -> 49 | J39: =I39-(I39*12%) -> 43.12 | K39: 51.25 | M39: 51.25 | N39: 51.25 | O39: 51.25 | R39: 12 | V39: 12 | AC39: 12 | AI39: 9 | AW39: 12 | BI39: 12 | BJ39: 6 | BK39: 6 | BT39: 12 | CD39: 24 | CG39: 9 | CI39: 12 | CS39: 12 | DB39: 12 | DM39: 12 | DW39: -2 | EG39: 2 | EJ39: 12 | EQ39: 12 | ER39: 6 | EW39: 6 | FA39: -1 | FC39: -1 | FE39: 6 | FK39: 28 | FR39: -2 | FT39: 14 | FU39: 60 | GC39: 93
A40: 36 | B40: 410510068 | C40: 6222016100688 | D40: فرشة بالجاروف توأم الهلال | E40: Helal | F40: فرشة بالجاروف | G40: قطعة | H40: =16/1.14 -> 14.03508772 | I40: =H40+(H40*14%) -> 16 | J40: =I40-(I40*12%) -> 14.08 | K40: 17.6 | L40: =I40-(I40*7%) -> 14.88 | M40: 17.6 | N40: 17.6 | O40: 17.6 | V40: 12 | W40: 36 | AH40: 12 | AK40: 12 | AM40: 12 | AV40: 6 | BB40: 18 | BE40: 12 | BF40: 12 | BQ40: 96 | BR40: 12 | CI40: 12 | CM40: 6 | DB40: 5 | DO40: 18 | EQ40: 18 | FB40: 6 | FG40: 12 | FQ40: 18 | FR40: 9 | GC40: 240
A41: 37 | B41: 410513513 | C41: 6222016135130 | D41: فرشة بالجاروف دولفين الهلال | E41: Helal | F41: فرشة بالجاروف | G41: قطعة | H41: 16.66666667 | I41: =H41+(H41*14%) -> 19 | J41: =I41-(I41*12%) -> 16.72 | K41: 20.9 | L41: =I41-(I41*7%) -> 17.67 | M41: 20.9 | N41: 20.9 | O41: 20.9 | V41: 10 | GC41: 10
A42: 38 | B42: 410510099 | C42: 6222016100992 | D42: فرشة بالجاروف كف الهلال | E42: Helal | F42: فرشة بالجاروف | G42: قطعة | H42: =13/1.14 -> 11.40350877 | I42: =H42+(H42*14%) -> 13 | J42: =I42-(I42*12%) -> 11.44 | K42: 14.3 | L42: =I42-(I42*7%) -> 12.09 | M42: 14.3 | N42: 14.3 | O42: 14.3 | BC42: 1 | CI42: 18 | CQ42: 6 | CS42: 11 | GC42: 1
A43: 39 | B43: 410510239 | D43: فرشة بالجاروف نوفا صغيره | E43: Helal | G43: قطعة | K43: 17.6814 | M43: 17.6814 | N43: 17.6814 | O43: 17.6814 | AG43: 12 | AH43: 12 | FG43: 6 | GC43: 24
A44: 40 | B44: 410810090 | C44: 6222016100909 | D44: فرشة بلاط باليد الهلال | E44: Helal | F44: فرشة بلاط | G44: قطعة | H44: 11.914 | I44: =H44+(H44*14%) -> 13.58196 | J44: =I44-(I44*12%) -> 11.9521248 | K44: 14.94 | L44: =I44-(I44*7%) -> 12.6312228 | M44: 14.94 | N44: 14.94 | O44: 14.94 | CT44: 6 | DG44: 24 | EX44: 6 | FF44: 12 | GC44: 0 | GL44: =GG44*M44 -> 0
A45: 41 | B45: 410812302 | C45: 6222016123021 | D45: فرشة بلاط باليد براندو الهلال | E45: Helal | F45: فرشة بلاط | G45: قطعة | H45: =16/1.14 -> 14.03508772 | I45: =H45+(H45*14%) -> 16 | J45: =I45-(I45*12%) -> 14.08 | K45: 17.6 | L45: =I45-(I45*7%) -> 14.88 | M45: 17.6 | N45: 17.6 | O45: 17.6 | GC45: 0
A46: 42 | B46: 410812303 | D46: فرشة بلاط باليد نوفا | E46: Helal | G46: قطعة | K46: 20.8962 | M46: 20.8962 | N46: 20.8962 | O46: 20.8962 | Z46: 12 | AH46: 12 | BP46: 12 | DC46: 24 | GC46: 36
A47: 43 | B47: 410810126 | D47: فرشة بلاط مكواة هلال | E47: Helal | G47: قطعة | K47: 12.6 | M47: 12.6 | N47: 12.6 | O47: 12.6 | GC47: 0
A48: 44 | B48: 410910088 | C48: 6222016100886 | D48: فرشة تواليت الهلال | E48: Helal | F48: فرش تواليت | G48: قطعة | H48: =8/1.14 -> 7.01754386 | I48: =H48+(H48*14%) -> 8 | J48: =I48-(I48*12%) -> 7.04 | K48: 8.8 | L48: =I48-(I48*7%) -> 7.44 | M48: 8.8 | N48: 8.8 | O48: 8.8 | U48: 12 | AA48: 24 | AL48: 12 | AY48: 12 | BK48: 12 | BS48: 12 | CI48: 12 | CJ48: 48 | CK48: 12 | DH48: 12 | DW48: 48 | GC48: 84 | GH48: =BS48*N48 -> 105.6
A49: 45 | B49: 410910177 | C49: 6222016101777 | D49: فرشة تواليت الهلال بالقاعدة بدون كاوتشة | E49: Helal | F49: فرش تواليت | G49: قطعة | H49: 16.66666667 | I49: =H49+(H49*14%) -> 19 | J49: =I49-(I49*12%) -> 16.72 | K49: 20.9 | L49: 17.67 | M49: 20.9 | N49: 20.9 | O49: 20.9 | CI49: 6 | GC49: 0
A50: 46 | B50: 410912202 | C50: 6222016122024 | D50: فرشة تواليت بالقاعدة باريس | E50: Helal | F50: فرش تواليت | G50: قطعة | H50: 13.15789474 | I50: =H50+(H50*14%) -> 15 | J50: =I50-(I50*12%) -> 13.2 | K50: 16.5 | L50: 13.95 | M50: 16.5 | N50: 16.5 | O50: 16.5 | AL50: 6 | AQ50: 6 | AU50: 6 | CF50: 36 | CI50: 4 | CQ50: 3 | CT50: 6 | DO50: 3 | DQ50: 18 | EG50: 18 | EI50: 18 | ES50: 18 | GC50: 18 | GN50: =AU50*N50 -> 99
A51: 47 | B51: 410910326 | D51: فرشة تواليت بالقاعدة نوفا | E51: Helal | G51: قطعة | K51: 27.4968 | L51: 0 | M51: 27.4968 | N51: 27.4968 | O51: 27.4968 | CI51: 6 | GC51: 0
A52: 48 | B52: 410910118 | D52: فرشة تواليت بالقاعدة نوفا بدون كاوتشه | E52: Helal | G52: قطعة | K52: 27.4968 | L52: 0 | M52: 27.4968 | N52: 27.4968 | O52: 27.4968 | GC52: 0
A53: 49 | B53: 410910141 | C53: 6222016101418 | D53: فرشة تواليت بامبو الهلال بالقاعدة | E53: Helal | F53: فرش تواليت | G53: قطعة | H53: 16.66666667 | I53: =H53+(H53*14%) -> 19 | J53: =I53-(I53*12%) -> 16.72 | K53: 20.9 | L53: 17.67 | M53: 20.9 | N53: 20.9 | O53: 20.9 | AQ53: 6 | GC53: 6
A54: 50 | B54: 410114310 | D54: فرشة جندولا | E54: Helal | F54: فرش و مكانس | G54: قطعة | K54: 15.19 | L54: 0 | M54: 15.19 | N54: 15.19 | O54: 15.19 | GC54: 0
A55: 51 | B55: 410114000 | C55: 6222016140004 | D55: فرشة دهب باليد المعدن | E55: Helal | F55: فرش و مكانس | G55: قطعة | H55: 51.75438596 | I55: =H55+(H55*14%) -> 59 | J55: =I55-(I55*12%) -> 51.92 | K55: 64.9 | L55: 54.87 | M55: 64.9 | N55: 64.9 | O55: 64.9 | GC55: 0
A56: 52 | B56: 410110107 | C56: 6222016101074 | D56: فرشة روما لوكس | E56: Helal | F56: فرش و مكانس | G56: قطعة | H56: 11.30403328 | I56: =H56+(H56*14%) -> 12.88659794 | J56: =I56-(I56*12%) -> 11.34020619 | K56: 14.61 | L56: 11.98453608 | M56: 14.61 | N56: 16.07 | O56: 16.07 | U56: 12 | X56: 12 | AA56: 12 | AJ56: 24 | AK56: 12 | AL56: 12 | AM56: 12 | AN56: 636 | AP56: 36 | AT56: 12 | AY56: 12 | BA56: 24 | BC56: 24 | BS56: 3 | CH56: 24 | CI56: 6 | CM56: 12 | CT56: 12 | CY56: 24 | DA56: 12 | DH56: 12 | DL56: 36 | DS56: 12 | DT56: 24 | DV56: 636 | DZ56: 18 | EC56: 18 | EP56: 12 | EQ56: 18 | ER56: 18 | EY56: 18 | FE56: 24 | FF56: 12 | FH56: 18 | FI56: 18 | FN56: 18 | FO56: 18 | FP56: 18 | GC56: 843 | GH56: =BS56*N56 -> 48.21 | GP56: 14.1 | GQ56: =GP56*1.14 -> 16.074
A57: 53 | B57: 515701011 | D57: فرشة ستايل766 | E57: Helal | F57: فرش متنوعة | G57: قطعة | K57: 27.5 | L57: 0 | M57: 27.5 | N57: 27.5 | O57: 27.5 | AU57: 12 | BV57: 12 | EL57: 12 | GC57: 24 | GN57: =AU57*N57 -> 330
A58: 54 | B58: 410810089 | C58: 6222016100893 | D58: فرشة سجاد الهلال | E58: Helal | F58: فرشة سجاد | G58: قطعة | H58: =9/1.14 -> 7.894736842 | I58: =H58+(H58*14%) -> 9 | J58: =I58-(I58*12%) -> 7.92 | K58: 9.9 | L58: 8.37 | M58: 9.9 | N58: 9.9 | O58: 9.9 | AX58: 18 | BI58: 72 | EM58: 18 | GC58: 90
A59: 55 | B59: 410810186 | D59: فرشة سجاد وموكيت نوفا | E59: Helal | G59: قطعة | K59: 13.2012 | L59: 0 | M59: 13.2012 | N59: 13.2012 | O59: 13.2012 | CK59: 12 | GC59: 0
A60: 56 | B60: 410110064 | C60: 6222016100640 | D60: فرشة سوبر هلين خشن | E60: Helal | F60: فرش و مكانس | G60: قطعة | H60: 15.73144631 | I60: =H60+(H60*14%) -> 17.9338488 | J60: =I60-(I60*12%) -> 15.78178694 | K60: 23.74 | M60: 23.74 | N60: 23.74 | O60: 23.74 | AJ60: 12 | BT60: 12 | DR60: 12 | GC60: 24
A61: 57 | B61: 410110062 | C61: 6222016100626 | D61: فرشة سوبر هلين ناعم | E61: Helal | F61: فرش و مكانس | G61: قطعة | H61: 15.73144631 | I61: =H61+(H61*14%) -> 17.9338488 | J61: =I61-(I61*12%) -> 15.78178694 | K61: 24.15 | L61: =I61-(I61*7%) -> 16.67847938 | M61: 24.15 | N61: 24.15 | O61: 24.15 | GC61: 0
A62: 58 | B62: 410114002 | C62: 6222016140028 | D62: فرشة سيارات الهلال | E62: Helal | F62: فرش متنوعة | G62: قطعة | H62: 17.72677946 | I62: =H62+(H62*14%) -> 20.20852858 | J62: =I62-(I62*12%) -> 17.78350515 | K62: 22.23 | L62: 18.79393158 | M62: 22.23 | N62: 22.23 | O62: 22.23 | EN62: 12 | GC62: 0
A63: 59 | B63: 410310069 | D63: فرشة شباك طويله | E63: Helal | F63: فرش و مكانس | G63: قطعة | K63: 11.28 | L63: 0 | M63: 11.28 | N63: 12.51 | O63: 12.51 | ED63: 24 | EJ63: 24 | EV63: 24 | FB63: 6 | FC63: 6 | FD63: 6 | FI63: 24 | FP63: 18 | FR63: 6 | FX63: 6 | FZ63: 12 | GC63: 0
A64: 60 | B64: 410210133 | C64: 6222016101333 | D64: فرشة طرق وملاعب 30 سم جلبة بلاستيك | E64: Helal | F64: فرش و مكانس | G64: قطعة | H64: 36.93079054 | I64: =H64+(H64*14%) -> 42.10110122 | J64: =I64-(I64*12%) -> 37.04896907 | K64: 46.31 | L64: 39.15402413 | M64: 46.31 | N64: 46.31 | O64: 46.31 | GC64: 0
A65: 61 | B65: 410210122 | C65: 6222016101227 | D65: فرشة طرق وملاعب 30 سم جلبة حديد | E65: Helal | F65: فرش و مكانس | G65: قطعة | H65: 45.20328762 | I65: 51.53174789 | J65: 45.34793814 | K65: 56.68 | L65: 47.92452554 | M65: 56.68 | N65: 56.68 | O65: 56.68 | GC65: 0
A66: 62 | B66: 410210123 | C66: 6222016101234 | D66: فرشة طرق وملاعب 40 سم جلبة حديد | E66: Helal | F66: فرش و مكانس | G66: قطعة | H66: 55.05149844 | I66: 62.75870822 | J66: 55.22766323 | K66: 63.25 | L66: 58.36559864 | M66: 63.25 | N66: 63.25 | O66: 63.25 | GC66: 0
A67: 63 | B67: 410210124 | C67: 6222016101241 | D67: فرشة طرق وملاعب 60 سم جلبة حديد | E67: Helal | F67: فرش و مكانس | G67: قطعة | H67: 78.68720438 | I67: 89.703413 | J67: 78.93900344 | K67: 98.67 | L67: 83.42417409 | M67: 98.67 | N67: 98.67 | O67: 98.67 | GC67: 0
A68: 64 | B68: 410210132 | C68: 6222016101326 | D68: فرشة طرق وملاعب خشب 60 سم بدون جلبة | E68: Helal | F68: فرش و مكانس | G68: قطعة | H68: 55.05149844 | I68: 62.75870822 | J68: 55.22766323 | K68: 69.03 | L68: 58.36559864 | M68: 69.03 | N68: 69.03 | O68: 69.03 | GC68: 0
A69: 65 | B69: 410114001 | C69: 6222016140011 | D69: فرشة فضة ناعمة باليد المعدن | E69: Helal | F69: فرش و مكانس | G69: قطعة | H69: 51.75438596 | I69: 59 | J69: 51.92 | K69: 64.9 | M69: 64.9 | N69: 64.9 | O69: 64.9 | GC69: 0
A70: 66 | B70: 518101001 | D70: فرشة فلاشو بدون | E70: Helal | G70: قطعة | K70: 17.67 | L70: =I70-(I70*7%) -> 0 | M70: 17.67 | N70: 17.67 | O70: 17.67 | GC70: 0
A71: 67 | B71: 410110104 | C71: 6222016101043 | D71: فرشة لوكس الهلال | E71: Helal | F71: فرش و مكانس | G71: قطعة | H71: 14 | I71: =H71+(H71*14%) -> 15.96 | J71: =I71-(I71*12%) -> 14.0448 | K71: 23.47 | M71: 23.47 | N71: 23.47 | O71: 23.47 | GC71: 0
A72: 68 | B72: 410310482 | D72: فرشة لؤلؤ | E72: Helal | G72: قطعة | K72: 13.08 | L72: =I72-(I72*7%) -> 0 | M72: 13.08 | N72: 13.08 | O72: 13.08 | GC72: 0
A73: 69 | B73: 410118004 | C73: 6222016180048 | D73: فرشة مدريد ناعم بيد معدن مدهون | E73: Helal | F73: فرش و مكانس | G73: قطعة | H73: 25.43859649 | I73: =H73+(H73*14%) -> 29 | J73: =I73-(I73*12%) -> 25.52 | K73: 31.9 | M73: 31.9 | N73: 31.9 | O73: 31.9 | GC73: 0
A74: 70 | B74: 410810108 | C74: 6222016101081 | D74: فرشة مكواة الهلال | E74: Helal | F74: فرشة مكواة | G74: قطعة | H74: =9/1.14 -> 7.894736842 | I74: =H74+(H74*14%) -> 9 | J74: =I74-(I74*12%) -> 7.92 | K74: 9.9 | M74: 9.9 | N74: 9.9 | O74: 9.9 | BF74: 12 | DB74: 12 | EM74: 12 | GC74: 12
A75: 71 | B75: 410810033 | C75: 6222016100336 | D75: فرشة مكواة ننيجا الهلال | E75: Helal | F75: فرشة مكواة | G75: قطعة | H75: 10.52631579 | I75: =H75+(H75*14%) -> 12 | J75: =I75-(I75*12%) -> 10.56 | K75: 13.2 | L75: =I75-(I75*7%) -> 11.16 | M75: 13.2 | N75: 13.2 | O75: 13.2 | AH75: 24 | BW75: 24 | CI75: 24 | CP75: 24 | GC75: 48
A76: 72 | B76: 410810191 | D76: فرشة مكواه نوفا | E76: Helal | G76: قطعة | K76: 15.96 | M76: 15.96 | N76: 15.96 | O76: 15.96 | V76: 24 | AF76: 12 | AG76: 12 | CK76: 12 | DD76: 12 | EX76: 12 | GC76: 48
A77: 73 | B77: 410310109 | C77: 6222016101098 | D77: فرشة ملابس الهلال | E77: Helal | F77: فرشة ملابس | G77: قطعة | H77: 10.52631579 | I77: =H77+(H77*14%) -> 12 | J77: =I77-(I77*12%) -> 10.56 | K77: 13.2 | L77: =I77-(I77*7%) -> 11.16 | M77: 13.2 | N77: 13.2 | O77: 13.2 | AM77: 6 | BT77: 12 | CI77: 18 | DM77: 24 | FX77: 6 | FY77: 6 | GC77: 18 | GP77: 11.58 | GQ77: =GP77*1.14 -> 13.2012
A78: 74 | B78: 411619253 | D78: فرشة ملابس نوفا | E78: Helal | G78: قطعة | K78: 11.001 | L78: =I78-(I78*7%) -> 0 | M78: 11.001 | N78: 11.001 | O78: 11.001 | Z78: 12 | AC78: 12 | CK78: 12 | DD78: 12 | EK78: 12 | FM78: 12 | GC78: 24
A79: 75 | B79: 410110058 | C79: 6222016100589 | D79: فرشة ميكس الهلال | E79: Helal | F79: فرش و مكانس | G79: قطعة | H79: 15.73144631 | I79: =H79+(H79*14%) -> 17.9338488 | J79: =I79-(I79*12%) -> 15.78178694 | K79: 19.73 | L79: =I79-(I79*7%) -> 16.67847938 | M79: 19.73 | N79: 19.73 | O79: 19.73 | CH79: 10 | EM79: 12 | GC79: 0
A80: 76 | B80: 411619252 | D80: فرشة نوفا كبيره خشنه | E80: Helal | G80: قطعة | K80: 27.4968 | L80: =I80-(I80*7%) -> 0 | M80: 27.4968 | N80: 27.4968 | O80: 27.4968 | AM80: 12 | AS80: 12 | CI80: 12 | DE80: 12 | EU80: 12 | FF80: 12 | GC80: 24
A81: 77 | B81: 411619251 | D81: فرشة نوفا كبيره ناعمه | E81: Helal | G81: قطعة | K81: 27.4968 | M81: 27.4968 | N81: 27.4968 | O81: 27.4968 | AK81: 12 | AS81: 12 | AU81: 24 | BH81: 12 | CI81: 12 | EM81: 12 | GC81: 60 | GN81: =AU81*N81 -> 659.9232
A82: 78 | B82: 410110057 | D82: فرشة نوفا ناعم بيد معدن 120سم مدهون | E82: Helal | G82: قطعة | K82: 42.8982 | M82: 42.8982 | N82: 42.8982 | O82: 42.8982 | AU82: 12 | CI82: 12 | GC82: 12 | GN82: 514.7784
A83: 79 | B83: 410912205 | C83: 6222016122055 | D83: فرشة هاي الهلال بالقاعدة | E83: Helal | F83: فرش تواليت | G83: قطعة | H83: 17.54385965 | I83: =H83+(H83*14%) -> 20 | J83: =I83-(I83*12%) -> 17.6 | K83: 22 | L83: =I83-(I83*7%) -> 18.6 | M83: 22 | N83: 22 | O83: 22 | GC83: 0
A84: 80 | B84: 410110063 | C84: 6222016100633 | D84: فرشة هلين اسود | E84: Helal | F84: فرش و مكانس | G84: قطعة | H84: 15.07204437 | I84: =H84+(H84*14%) -> 17.18213058 | J84: =I84-(I84*12%) -> 15.12027491 | K84: 23.16 | L84: =I84-(I84*7%) -> 15.97938144 | M84: 23.16 | N84: 23.16 | O84: 23.16 | Q84: 12 | X84: 12 | AU84: 24 | BB84: 12 | BF84: 12 | BR84: 12 | BS84: 3 | BV84: 12 | CI84: 36 | DN84: 24 | DR84: 12 | DT84: 12 | EA84: 36 | EF84: 12 | EJ84: 12 | EN84: 12 | ET84: 12 | FB84: 12 | FC84: 12 | FE84: 12 | FF84: 12 | FQ84: 12 | FX84: 6 | GC84: 99 | GH84: =BS84*N84 -> 69.48 | GN84: =AU84*N84 -> 555.84
A85: 81 | B85: 410710087 | D85: لمامة 4 ريشة | E85: Helal | F85: لمامه | G85: قطعة | I85: 16.28 | J85: =I85-(I85*12%) -> 14.3264 | K85: 17.91 | M85: 17.91 | N85: 17.91 | O85: 17.91 | AQ85: 6 | EA85: 12 | FD85: 25 | GC85: 6
A86: 82 | B86: 410710086 | C86: 6222016100862 | D86: لمامة الهلال 3 ريشة | E86: Helal | F86: لمامة | G86: قطعة | H86: 13.15789474 | I86: =H86+(H86*14%) -> 15 | J86: =I86-(I86*12%) -> 13.2 | K86: 16.5 | M86: 16.5 | N86: 16.5 | O86: 16.5 | Z86: 12 | AQ86: 6 | AZ86: 6 | EA86: 12 | EE86: 18 | FG86: 18 | GC86: 24 | GL86: =GG86*M86 -> 0 | GP86: 14.48 | GQ86: =GP86*1.14 -> 16.5072
A87: 83 | B87: 410712700 | D87: لمامه نوفا 2 ريشه | E87: Helal | G87: قطعة | K87: 16.4958 | M87: 16.4958 | N87: 16.4958 | O87: 16.4958 | S87: 12 | U87: 12 | AE87: 24 | AQ87: 6 | AU87: 12 | AZ87: 6 | BP87: 12 | BS87: 3 | DD87: 12 | FU87: 144 | GC87: 87 | GH87: =BS87*N87 -> 49.4874 | GN87: =AU87*N87 -> 197.9496
A88: 84 | B88: 411012501 | D88: مساحة 55 سم | E88: Helal | G88: قطعة | K88: 61.62 | M88: 61.62 | N88: 61.62 | O88: 61.62 | GC88: 0
A89: 85 | B89: 411012502 | D89: مساحة 75 سم | E89: Helal | G89: قطعة | K89: 76.44 | M89: 76.44 | N89: 76.44 | O89: 76.44 | GC89: 0
A90: 86 | B90: 411310100 | C90: 6222016101005 | D90: مساحة باركيه الهلال العجيبة | E90: Helal | F90: مساحة | G90: قطعة | H90: 43.47 | I90: =H90+(H90*14%) -> 49.5558 | J90: =I90-(I90*12%) -> 43.609104 | K90: 54.51 | M90: 54.51 | N90: 54.51 | O90: 54.51 | GC90: 0
A91: 87 | B91: 411010082 | C91: 6222016100824 | D91: مساحة زجاج الهلال 30 سم معدن | E91: Helal | F91: مساحة زجاج | G91: قطعة | H91: 9.454282379 | I91: =H91+(H91*14%) -> 10.77788191 | J91: =I91-(I91*12%) -> 9.484536082 | K91: 11.86 | M91: 11.86 | N91: 11.86 | O91: 11.86 | P91: 12 | AL91: 12 | AU91: 12 | AZ91: 6 | BF91: 12 | BT91: 12 | BU91: 12 | CF91: 24 | CI91: 48 | ER91: 12 | EW91: 6 | FR91: 12 | GC91: 78 | GN91: =AU91*N91 -> 142.32
A92: 88 | B92: 411010081 | C92: 6222016100817 | D92: مساحة زجاج الهلال بالإسفنجة | E92: Helal | F92: مساحة زجاج | G92: قطعة | H92: 12.01481719 | I92: =H92+(H92*14%) -> 13.6968916 | J92: =I92-(I92*12%) -> 12.0532646 | K92: 15.07 | M92: 15.07 | N92: 15.07 | O92: 15.07 | AU92: 12 | GC92: 12 | GN92: 180.84
A93: 89 | B93: 411018008 | D93: مساحة زجاج نوفا بالاسفنجه | E93: Helal | G93: قطعة | K93: 21.033 | M93: 21.033 | N93: 21.033 | O93: 21.033 | GC93: 0
A94: 90 | B94: 411012509 | D94: مساحة زجاج نوفا بالكاوتشه | E94: Helal | G94: قطعة | K94: 15.3672 | M94: 15.3672 | N94: 15.3672 | O94: 15.3672 | P94: 12 | AC94: 10 | AM94: 12 | AU94: 12 | CA94: 12 | GC94: 46 | GN94: =AU94*N94 -> 184.4064
A95: 91 | B95: 411012503 | D95: مساحة ستايل 40سم | E95: Helal | F95: مساحه | G95: قطعة | I95: 19.32 | J95: =I95-(I95*12%) -> 17.0016 | K95: 21.26 | M95: 21.26 | N95: 21.26 | O95: 21.26 | GC95: 0
A96: 92 | B96: 411010298 | D96: مساحة نوفا 40 سم | E96: Helal | G96: قطعة | K96: 20.8962 | M96: 20.8962 | N96: 20.8962 | O96: =N96 -> 20.8962 | AM96: 12 | AO96: 12 | AU96: 12 | CB96: 12 | DF96: 24 | EB96: 12 | GC96: 36 | GN96: =AU96*N96 -> 250.7544
A97: 93 | B97: 411010074 | C97: 6222016100749 | D97: مساحة هلال صغيرة 40سم | E97: Helal | F97: مساحة | G97: قطعة | H97: 14.03508772 | I97: =H97+(H97*14%) -> 16 | J97: =I97-(I97*12%) -> 14.08 | K97: 17.6 | M97: 19 | N97: 19 | O97: 19 | U97: 6 | Y97: 18 | AR97: 12 | BA97: 12 | BK97: 6 | BR97: 12 | BX97: 30 | CB97: 12 | CI97: 24 | CL97: 12 | CU97: 24 | DL97: 24 | DT97: 6 | EK97: 12 | EO97: 12 | ER97: 12 | EX97: 6 | FC97: 12 | FZ97: 6 | GC97: 66
A98: 94 | B98: 411010080 | C98: 6222016100800 | D98: مساحة هلال كبيرة 46سم | E98: Helal | F98: مساحة | G98: قطعة | H98: 16.66666667 | I98: =H98+(H98*14%) -> 19 | J98: =I98-(I98*12%) -> 16.72 | K98: 20.9 | M98: 24 | N98: 24 | O98: 24 | BA98: 12 | CI98: 12 | CU98: 11 | DL98: 24 | EK98: 12 | GC98: 12
A99: 95 | B99: 411010242 | C99: 6222016102422 | D99: مساحة وفرشة ميكس الهلال 40سم | E99: Helal | F99: مساحة | G99: قطعة | H99: 21.92982456 | I99: =H99+(H99*14%) -> 25 | J99: =I99-(I99*12%) -> 22 | K99: 27.5 | M99: 27.5 | N99: 27.5 | O99: 27.5 | AN99: 36 | FT99: 12 | GC99: 36
A100: 96 | B100: 410410447 | C100: 6222016104471 | D100: مكنسة الهلال السحرية | E100: Helal | F100: فرش و مكانس | G100: قطعة | H100: 88.14148676 | I100: =H100+(H100*14%) -> 100.4812949 | J100: =I100-(I100*12%) -> 88.42353952 | K100: 110.53 | M100: 110.53 | N100: 110.53 | O100: 110.53 | GC100: 0
A101: 97 | B101: 410410054 | D101: مكنسة سوبر اجزى | E101: Helal | M101: 19.14 | N101: 19.14 | O101: 19.14 | GC101: =SUM(P101:BW101) -> 0
A102: 98 | B102: 411719238 | C102: 6222016192386 | D102: منشر غسيل هلال 3 دور | E102: Helal | F102: منشر | G102: قطعة | H102: 350 | I102: =H102+(H102*14%) -> 399 | J102: =I102-(I102*12%) -> 351.12 | K102: 438.9 | M102: 438.9 | N102: 438.9 | O102: 438.9 | AN102: 10 | BG102: 1 | BL102: 1 | CE102: 2 | CH102: 1 | CI102: 3 | EY102: 2 | FV102: 5 | GC102: 12
A103: 99 | B103: 411310096 | C103: 6222016100961 | D103: موب قطن الهلال | E103: Helal | F103: موب | G103: قطعة | H103: =9/1.14 -> 7.894736842 | I103: =H103+(H103*14%) -> 9 | J103: =I103-(I103*12%) -> 7.92 | K103: 9.9 | M103: 10.89 | N103: 10.89 | O103: 10.89 | S103: 24 | AU103: 24 | CI103: 12 | CO103: 12 | FB103: 12 | FG103: 12 | FR103: 12 | GC103: 48 | GN103: =AU103*N103 -> 261.36
A104: 100 | B104: 411316984 | C104: 6222016169845 | D104: موب قطن 100% | E104: Helal | F104: موب | G104: قطعة | H104: 13.15789474 | I104: =H104+(H104*14%) -> 15 | J104: =I104-(I104*12%) -> 13.2 | K104: 16.5 | M104: 16.5 | N104: 16.5 | O104: 16.5 | GC104: 0
A105: 101 | B105: 411316999 | C105: 6222016169999 | D105: موب قطن 100% بيد معدن 120 سم مدهون | E105: Helal | F105: موب | G105: قطعة | H105: 21.93 | I105: =H105+(H105*14%) -> 25.0002 | J105: =I105-(I105*12%) -> 22.000176 | K105: 27.5 | M105: 27.5 | N105: 27.5 | O105: 27.5 | GC105: 0
A106: 102 | B106: 411316985 | D106: موب نوفا قطن 100% | E106: Helal | G106: قطعة | K106: 20.9076 | M106: 20.9076 | N106: 20.9076 | O106: 20.9076 | GC106: 0
A107: 103 | B107: 411419262 | D107: موب نوفا قطن 100% بيد معدن 110سم مدهون | E107: Helal | G107: قطعة | K107: 31.8972 | M107: 31.8972 | N107: 31.8972 | O107: 31.8972 | GC107: 0
A108: 104 | B108: 411410144 | C108: 6222016101449 | D108: يد جردل سبيدو | E108: Helal | F108: جرادل | G108: قطعة | H108: 43.54973325 | I108: =H108+(H108*14%) -> 49.64669591 | J108: =I108-(I108*12%) -> 43.6890924 | K108: 54.61 | M108: 54.61 | N108: 54.61 | O108: 54.61 | GC108: 0
A109: 105 | B109: 411410167 | C109: 6222016101678 | D109: يد خشب لوكس الهلال مدهون ( يد غليظة 120سم) | E109: Helal | F109: أيادي | G109: قطعة | H109: 12.39822222 | I109: =H109+(H109*14%) -> 14.13397333 | J109: =I109-(I109*12%) -> 12.43789653 | K109: 15.55 | M109: 15.55 | N109: 15.55 | O109: 15.55 | GC109: 0
A110: 106 | B110: 411410116 | C110: 6222016101166 | D110: يد زان الهلال 120 سم مغلف | E110: Helal | F110: أيادي | G110: قطعة | H110: 8.901272778 | I110: =H110+(H110*14%) -> 10.14745097 | J110: =I110-(I110*12%) -> 8.929756851 | K110: 11.16 | M110: 11.16 | N110: 11.16 | O110: 11.16 | GC110: 0
A111: 107 | B111: 411410115 | D111: يد نوفا معدن 120 سم مدهون | E111: Helal | G111: قطعة | K111: 16.4958 | M111: 16.4958 | N111: 16.4958 | O111: 16.4958 | X111: 12 | AA111: 48 | AC111: 12 | AI111: 24 | AQ111: 12 | AW111: 72 | BQ111: -1 | DG111: 24 | DK111: 12 | DL111: 24 | DO111: 24 | DR111: 24 | EJ111: 12 | FL111: 20 | GC111: 179
A112: 108 | B112: 411416970 | C112: 6222016169708 | D112: يد هلال معدن 120 سم مدهون أحمر | E112: Helal | F112: أيادي | G112: قطعة | H112: 13.15789474 | I112: =H112+(H112*14%) -> 15 | J112: =I112-(I112*12%) -> 13.2 | K112: 16.5 | M112: 16.5 | N112: 16.5 | O112: 16.5 | DU112: 12 | EA112: 12 | GC112: 0
GC113: 0
GC114: 0 | GH114: =M114*0.77 -> 0 | GI114: =GG114*GH114 -> 0
B115: اجمالي البيع
B116: اجمالي الفواتير | P116: =P5*$N$5+P6*$N$6+P7*$N$7+P8*$N$8+P9*$N$9+P10*$N$10+P11*$N$11+P12*$N$12+P13*$N$13+P14*$N$14+P15*$N$15+P16*$N$16+P17*$N$17+P18*$N$18+P19*$N$19+P20*$N$20+P21*$N$21+P22*$N$22+P23*$N$23+P24*$N$24+P25*$N$25+P26*$N$26+P27*$N$27+P28*$N$28+P29*$N$29+P30*$N$30+P31*$N$31+P32*$N$32+P33*$N$33+P34*$N$34+P35*$N$35+P36*$N$36+P37*$N$37+P38*$N$38+P39*$N$39+P40*$N$40+P41*$N$41+P42*$N$42+P43*$N$43+P44*$N$44+P45*$N$45+P46*$N$46+P47*$N$47+P48*$N$48+P49*$N$49+P50*$N$50+P51*$N$51+P52*$N$52+P53*$N$53+P54*$N$54+P55*$N$55+P56*$N$56+P57*$N$57+P58*$N$58+P59*$N$59+P60*$N$60+P61*$N$61+P62*$N$62+P63*$N$63+P64*$N$64+P65*$N$65+P66*$N$66+P67*$N$67+P68*$N$68+P69*$N$69+P70*$N$70+P71*$N$71+P72*$N$72+P73*$N$73+P74*$N$74+P75*$N$75+P76*$N$76+P77*$N$77+P78*$N$78+P79*$N$79+P80*$N$80+P81*$N$81+P82*$N$82+P83*$N$83+P84*$N$84+P85*$N$85+P86*$N$86+P87*$N$87+P88*$N$88+P89*$N$89+P90*$N$90+P91*$N$91+P92*$N$92+P93*$N$93+P94*$N$94+P95*$N$95+P96*$N$96+P97*$N$97+P98*$N$98+P99*$N$99+P100*$N$100+P102*$N$102+P103*$N$103+P104*$N$104+P105*$N$105+P106*$N$106+P107*$N$107+P108*$N$108+P109*$N$109+P110*$N$110+P111*$N$111+P112*$N$112+P101*$N$101 -> 458.7384 | Q116: 1117.92 | R116: 2396.9568 | S116: 459.3096 | T116: 420 | U116: 610.3896 | V116: 2084.76 | W116: 633.6 | X116: 668.7096 | Y116: 918 | Z116: 580.7664 | AA116: 1195.8384 | AB116: 826.7544 | AC116: 1273.9536 | AD116: 3122.7336 | AE116: 395.8992 | AF116: 191.52 | AG116: 403.6968 | AH116: 990.9312 | AI116: 857.1492 | AJ116: 1611.84 | AK116: 734.0016 | AL116: 1107.12 | AM116: 2026.2624 | AN116: 15599.52 | AO116: 554.5944 | AP116: 578.52 | AQ116: 1124.8644 | AR116: 228 | AS116: 1174.0776 | AT116: 192.84 | AU116: 5488.7892 | AV116: 105.6 | AW116: 2601.4076 | AX116: 178.2 | AY116: 490.2 | AZ116: 653.1348 | BA116: 901.68 | BB116: 1793.7198 | BC116: 399.98 | BD116: 192 | BE116: 211.2 | BF116: 750.24 | BG116: 809.6598 | BH116: 329.9616 | BI116: 2849.7856 | BJ116: 901.4856 | BK116: 527.1 | BL116: 630.9 | BM116: 3122.7336 | BN116: 246.52 | BO116: 528.048 | BP116: 448.704 | BQ116: 5744.1642 | BR116: 909.12 | BS116: 878.8974 | BT116: 1584.6 | BU116: 142.32 | BV116: 871.32 | BW116: 316.8 | BX116: 440.1996 | BY116: 2935.2 | BZ116: 395.4 | CA116: 184.4064 | CB116: =CB5*$N$5+CB6*$N$6+CB7*$N$7+CB8*$N$8+CB9*$N$9+CB10*$N$10+CB11*$N$11+CB12*$N$12+CB13*$N$13+CB14*$N$14+CB15*$N$15+CB16*$N$16+CB17*$N$17+CB18*$N$18+CB19*$N$19+CB20*$N$20+CB21*$N$21+CB22*$N$22+CB23*$N$23+CB24*$N$24+CB25*$N$25+CB26*$N$26+CB27*$N$27+CB28*$N$28+CB29*$N$29+CB30*$N$30+CB31*$N$31+CB32*$N$32+CB33*$N$33+CB34*$N$34+CB35*$N$35+CB36*$N$36+CB37*$N$37+CB38*$N$38+CB39*$N$39+CB40*$N$40+CB41*$N$41+CB42*$N$42+CB43*$N$43+CB44*$N$44+CB45*$N$45+CB46*$N$46+CB47*$N$47+CB48*$N$48+CB49*$N$49+CB50*$N$50+CB51*$N$51+CB52*$N$52+CB53*$N$53+CB54*$N$54+CB55*$N$55+CB56*$N$56+CB57*$N$57+CB58*$N$58+CB59*$N$59+CB60*$N$60+CB61*$N$61+CB62*$N$62+CB63*$N$63+CB64*$N$64+CB65*$N$65+CB66*$N$66+CB67*$N$67+CB68*$N$68+CB69*$N$69+CB70*$N$70+CB71*$N$71+CB72*$N$72+CB73*$N$73+CB74*$N$74+CB75*$N$75+CB76*$N$76+CB77*$N$77+CB78*$N$78+CB79*$N$79+CB80*$N$80+CB81*$N$81+CB82*$N$82+CB83*$N$83+CB84*$N$84+CB85*$N$85+CB86*$N$86+CB87*$N$87+CB88*$N$88+CB89*$N$89+CB90*$N$90+CB91*$N$91+CB92*$N$92+CB93*$N$93+CB94*$N$94+CB95*$N$95+CB96*$N$96+CB97*$N$97+CB98*$N$98+CB99*$N$99+CB100*$N$100+CB102*$N$102+CB103*$N$103+CB104*$N$104+CB105*$N$105+CB106*$N$106+CB107*$N$107+CB108*$N$108+CB109*$N$109+CB110*$N$110+CB111*$N$111+CB112*$N$112+CB101*$N$101 -> 478.7544 | CC116: 593.9856 | CD116: 2382 | CE116: 659.97 | CF116: 1532.13 | CG116: 461.25 | CH116: 1794.76 | CI116: 11453.0936 | CJ116: 422.4 | CK116: 587.5464 | CL116: 228 | CM116: 298.44 | CN116: 435.66 | CO116: 486.68 | CP116: 800.34 | CQ116: 327.3 | CR116: 542.3256 | CS116: 1423.78 | CT116: 774.06 | CU116: 1313.9856 | CV116: 819.66 | CW116: 676.6974 | CX116: 871.32 | CY116: 577.68 | CZ116: 192 | DA116: 192.84 | DB116: 821.8 | DC116: 501.5088 | DD116: 521.4816 | DE116: 329.9616 | DF116: =DF5*$O$5+DF6*$O$6+DF7*$O$7+DF8*$O$8+DF9*$O$9+DF10*$O$10+DF11*$O$11+DF12*$O$12+DF13*$O$13+DF14*$O$14+DF15*$O$15+DF16*$O$16+DF17*$O$17+DF18*$O$18+DF19*$O$19+DF20*$O$20+DF21*$O$21+DF22*$O$22+DF23*$O$23+DF24*$O$24+DF25*$O$25+DF26*$O$26+DF27*$O$27+DF28*$O$28+DF29*$O$29+DF30*$O$30+DF31*$O$31+DF32*$O$32+DF33*$O$33+DF34*$O$34+DF35*$O$35+DF36*$O$36+DF37*$O$37+DF38*$O$38+DF39*$O$39+DF40*$O$40+DF41*$O$41+DF42*$O$42+DF43*$O$43+DF44*$O$44+DF45*$O$45+DF46*$O$46+DF47*$O$47+DF48*$O$48+DF49*$O$49+DF50*$O$50+DF51*$O$51+DF52*$O$52+DF53*$O$53+DF54*$O$54+DF55*$O$55+DF56*$O$56+DF57*$O$57+DF58*$O$58+DF59*$O$59+DF60*$O$60+DF61*$O$61+DF62*$O$62+DF63*$O$63+DF64*$O$64+DF65*$O$65+DF66*$O$66+DF67*$O$67+DF68*$O$68+DF69*$O$69+DF70*$O$70+DF71*$O$71+DF72*$O$72+DF73*$O$73+DF74*$O$74+DF75*$O$75+DF76*$O$76+DF77*$O$77+DF78*$O$78+DF79*$O$79+DF80*$O$80+DF81*$O$81+DF82*$O$82+DF83*$O$83+DF84*$O$84+DF85*$O$85+DF86*$O$86+DF87*$O$87+DF88*$O$88+DF89*$O$89+DF90*$O$90+DF91*$O$91+DF92*$O$92+DF93*$O$93+DF94*$O$94+DF95*$O$95+DF96*$O$96+DF97*$O$97+DF98*$O$98+DF99*$O$99+DF100*$O$100+DF102*$O$102+DF103*$O$103+DF104*$O$104+DF105*$O$105+DF106*$O$106+DF107*$O$107+DF108*$O$108+DF109*$O$109+DF110*$O$110+DF111*$O$111+DF112*$O$112+DF101*$O$101 -> 925.8624 | DG116: =DG5*$N$5+DG6*$N$6+DG7*$N$7+DG8*$N$8+DG9*$N$9+DG10*$N$10+DG11*$N$11+DG12*$N$12+DG13*$N$13+DG14*$N$14+DG15*$N$15+DG16*$N$16+DG17*$N$17+DG18*$N$18+DG19*$N$19+DG20*$N$20+DG21*$N$21+DG22*$N$22+DG23*$N$23+DG24*$N$24+DG25*$N$25+DG26*$N$26+DG27*$N$27+DG28*$N$28+DG29*$N$29+DG30*$N$30+DG31*$N$31+DG32*$N$32+DG33*$N$33+DG34*$N$34+DG35*$N$35+DG36*$N$36+DG37*$N$37+DG38*$N$38+DG39*$N$39+DG40*$N$40+DG41*$N$41+DG42*$N$42+DG43*$N$43+DG44*$N$44+DG45*$N$45+DG46*$N$46+DG47*$N$47+DG48*$N$48+DG49*$N$49+DG50*$N$50+DG51*$N$51+DG52*$N$52+DG53*$N$53+DG54*$N$54+DG55*$N$55+DG56*$N$56+DG57*$N$57+DG58*$N$58+DG59*$N$59+DG60*$N$60+DG61*$N$61+DG62*$N$62+DG63*$N$63+DG64*$N$64+DG65*$N$65+DG66*$N$66+DG67*$N$67+DG68*$N$68+DG69*$N$69+DG70*$N$70+DG71*$N$71+DG72*$N$72+DG73*$N$73+DG74*$N$74+DG75*$N$75+DG76*$N$76+DG77*$N$77+DG78*$N$78+DG79*$N$79+DG80*$N$80+DG81*$N$81+DG82*$N$82+DG83*$N$83+DG84*$N$84+DG85*$N$85+DG86*$N$86+DG87*$N$87+DG88*$N$88+DG89*$N$89+DG90*$N$90+DG91*$N$91+DG92*$N$92+DG93*$N$93+DG94*$N$94+DG95*$N$95+DG96*$N$96+DG97*$N$97+DG98*$N$98+DG99*$N$99+DG100*$N$100+DG102*$N$102+DG103*$N$103+DG104*$N$104+DG105*$N$105+DG106*$N$106+DG107*$N$107+DG108*$N$108+DG109*$N$109+DG110*$N$110+DG111*$N$111+DG112*$N$112+DG101*$N$101 -> 754.4592 | DH116: 298.44 | DI116: 3903.417 | DJ116: 778.8024 | DK116: 197.9496 | DL116: 2774.4192 | DM116: 931.8 | DN116: 555.84 | DO116: 762.1992 | DP116: 828.24 | DQ116: 1065 | DR116: 958.6992 | DS116: 628.5 | DT116: 777.6 | DU116: 198 | DV116: 10220.52 | DW116: 1471.9 | DX116: 1063.32 | DY116: 768 | DZ116: 289.26 | EA116: 1444.68 | EB116: 250.7544 | EC116: 481.26 | ED116: 684.24 | EE116: 681 | EF116: 1929.9234 | EG116: 662.9 | EH116: 395.8992 | EI116: 1065 | EJ116: 1391.1096 | EK116: 1765.6254 | EL116: 660 | EM116: 1061.6712 | EN116: 736.68 | EO116: 228 | EP116: 384.6 | EQ116: 1605.06 | ER116: 1439.04 | ES116: 297 | ET116: 277.92 | EU116: =EU5*$O$5+EU6*$O$6+EU7*$O$7+EU8*$O$8+EU9*$O$9+EU10*$O$10+EU11*$O$11+EU12*$O$12+EU13*$O$13+EU14*$O$14+EU15*$O$15+EU16*$O$16+EU17*$O$17+EU18*$O$18+EU19*$O$19+EU20*$O$20+EU21*$O$21+EU22*$O$22+EU23*$O$23+EU24*$O$24+EU25*$O$25+EU26*$O$26+EU27*$O$27+EU28*$O$28+EU29*$O$29+EU30*$O$30+EU31*$O$31+EU32*$O$32+EU33*$O$33+EU34*$O$34+EU35*$O$35+EU36*$O$36+EU37*$O$37+EU38*$O$38+EU39*$O$39+EU40*$O$40+EU41*$O$41+EU42*$O$42+EU43*$O$43+EU44*$O$44+EU45*$O$45+EU46*$O$46+EU47*$O$47+EU48*$O$48+EU49*$O$49+EU50*$O$50+EU51*$O$51+EU52*$O$52+EU53*$O$53+EU54*$O$54+EU55*$O$55+EU56*$O$56+EU57*$O$57+EU58*$O$58+EU59*$O$59+EU60*$O$60+EU61*$O$61+EU62*$O$62+EU63*$O$63+EU64*$O$64+EU65*$O$65+EU66*$O$66+EU67*$O$67+EU68*$O$68+EU69*$O$69+EU70*$O$70+EU71*$O$71+EU72*$O$72+EU73*$O$73+EU74*$O$74+EU75*$O$75+EU76*$O$76+EU77*$O$77+EU78*$O$78+EU79*$O$79+EU80*$O$80+EU81*$O$81+EU82*$O$82+EU83*$O$83+EU84*$O$84+EU85*$O$85+EU86*$O$86+EU87*$O$87+EU88*$O$88+EU89*$O$89+EU90*$O$90+EU91*$O$91+EU92*$O$92+EU93*$O$93+EU94*$O$94+EU95*$O$95+EU96*$O$96+EU97*$O$97+EU98*$O$98+EU99*$O$99+EU100*$O$100+EU102*$O$102+EU103*$O$103+EU104*$O$104+EU105*$O$105+EU106*$O$106+EU107*$O$107+EU108*$O$108+EU109*$O$109+EU110*$O$110+EU111*$O$111+EU112*$O$112+EU101*$O$101 -> 1517.9328 | EV116: =EV5*$O$5+EV6*$O$6+EV7*$O$7+EV8*$O$8+EV9*$O$9+EV10*$O$10+EV11*$O$11+EV12*$O$12+EV13*$O$13+EV14*$O$14+EV15*$O$15+EV16*$O$16+EV17*$O$17+EV18*$O$18+EV19*$O$19+EV20*$O$20+EV21*$O$21+EV22*$O$22+EV23*$O$23+EV24*$O$24+EV25*$O$25+EV26*$O$26+EV27*$O$27+EV28*$O$28+EV29*$O$29+EV30*$O$30+EV31*$O$31+EV32*$O$32+EV33*$O$33+EV34*$O$34+EV35*$O$35+EV36*$O$36+EV37*$O$37+EV38*$O$38+EV39*$O$39+EV40*$O$40+EV41*$O$41+EV42*$O$42+EV43*$O$43+EV44*$O$44+EV45*$O$45+EV46*$O$46+EV47*$O$47+EV48*$O$48+EV49*$O$49+EV50*$O$50+EV51*$O$51+EV52*$O$52+EV53*$O$53+EV54*$O$54+EV55*$O$55+EV56*$O$56+EV57*$O$57+EV58*$O$58+EV59*$O$59+EV60*$O$60+EV61*$O$61+EV62*$O$62+EV63*$O$63+EV64*$O$64+EV65*$O$65+EV66*$O$66+EV67*$O$67+EV68*$O$68+EV69*$O$69+EV70*$O$70+EV71*$O$71+EV72*$O$72+EV73*$O$73+EV74*$O$74+EV75*$O$75+EV76*$O$76+EV77*$O$77+EV78*$O$78+EV79*$O$79+EV80*$O$80+EV81*$O$81+EV82*$O$82+EV83*$O$83+EV84*$O$84+EV85*$O$85+EV86*$O$86+EV87*$O$87+EV88*$O$88+EV89*$O$89+EV90*$O$90+EV91*$O$91+EV92*$O$92+EV93*$O$93+EV94*$O$94+EV95*$O$95+EV96*$O$96+EV97*$O$97+EV98*$O$98+EV99*$O$99+EV100*$O$100+EV102*$O$102+EV103*$O$103+EV104*$O$104+EV105*$O$105+EV106*$O$106+EV107*$O$107+EV108*$O$108+EV109*$O$109+EV110*$O$110+EV111*$O$111+EV112*$O$112+EV101*$O$101 -> 604.08 | EW116: =EW5*$O$5+EW6*$O$6+EW7*$O$7+EW8*$O$8+EW9*$O$9+EW10*$O$10+EW11*$O$11+EW12*$O$12+EW13*$O$13+EW14*$O$14+EW15*$O$15+EW16*$O$16+EW17*$O$17+EW18*$O$18+EW19*$O$19+EW20*$O$20+EW21*$O$21+EW22*$O$22+EW23*$O$23+EW24*$O$24+EW25*$O$25+EW26*$O$26+EW27*$O$27+EW28*$O$28+EW29*$O$29+EW30*$O$30+EW31*$O$31+EW32*$O$32+EW33*$O$33+EW34*$O$34+EW35*$O$35+EW36*$O$36+EW37*$O$37+EW38*$O$38+EW39*$O$39+EW40*$O$40+EW41*$O$41+EW42*$O$42+EW43*$O$43+EW44*$O$44+EW45*$O$45+EW46*$O$46+EW47*$O$47+EW48*$O$48+EW49*$O$49+EW50*$O$50+EW51*$O$51+EW52*$O$52+EW53*$O$53+EW54*$O$54+EW55*$O$55+EW56*$O$56+EW57*$O$57+EW58*$O$58+EW59*$O$59+EW60*$O$60+EW61*$O$61+EW62*$O$62+EW63*$O$63+EW64*$O$64+EW65*$O$65+EW66*$O$66+EW67*$O$67+EW68*$O$68+EW69*$O$69+EW70*$O$70+EW71*$O$71+EW72*$O$72+EW73*$O$73+EW74*$O$74+EW75*$O$75+EW76*$O$76+EW77*$O$77+EW78*$O$78+EW79*$O$79+EW80*$O$80+EW81*$O$81+EW82*$O$82+EW83*$O$83+EW84*$O$84+EW85*$O$85+EW86*$O$86+EW87*$O$87+EW88*$O$88+EW89*$O$89+EW90*$O$90+EW91*$O$91+EW92*$O$92+EW93*$O$93+EW94*$O$94+EW95*$O$95+EW96*$O$96+EW97*$O$97+EW98*$O$98+EW99*$O$99+EW100*$O$100+EW102*$O$102+EW103*$O$103+EW104*$O$104+EW105*$O$105+EW106*$O$106+EW107*$O$107+EW108*$O$108+EW109*$O$109+EW110*$O$110+EW111*$O$111+EW112*$O$112+EW101*$O$101 -> 966.24 | EX116: =EX5*$O$5+EX6*$O$6+EX7*$O$7+EX8*$O$8+EX9*$O$9+EX10*$O$10+EX11*$O$11+EX12*$O$12+EX13*$O$13+EX14*$O$14+EX15*$O$15+EX16*$O$16+EX17*$O$17+EX18*$O$18+EX19*$O$19+EX20*$O$20+EX21*$O$21+EX22*$O$22+EX23*$O$23+EX24*$O$24+EX25*$O$25+EX26*$O$26+EX27*$O$27+EX28*$O$28+EX29*$O$29+EX30*$O$30+EX31*$O$31+EX32*$O$32+EX33*$O$33+EX34*$O$34+EX35*$O$35+EX36*$O$36+EX37*$O$37+EX38*$O$38+EX39*$O$39+EX40*$O$40+EX41*$O$41+EX42*$O$42+EX43*$O$43+EX44*$O$44+EX45*$O$45+EX46*$O$46+EX47*$O$47+EX48*$O$48+EX49*$O$49+EX50*$O$50+EX51*$O$51+EX52*$O$52+EX53*$O$53+EX54*$O$54+EX55*$O$55+EX56*$O$56+EX57*$O$57+EX58*$O$58+EX59*$O$59+EX60*$O$60+EX61*$O$61+EX62*$O$62+EX63*$O$63+EX64*$O$64+EX65*$O$65+EX66*$O$66+EX67*$O$67+EX68*$O$68+EX69*$O$69+EX70*$O$70+EX71*$O$71+EX72*$O$72+EX73*$O$73+EX74*$O$74+EX75*$O$75+EX76*$O$76+EX77*$O$77+EX78*$O$78+EX79*$O$79+EX80*$O$80+EX81*$O$81+EX82*$O$82+EX83*$O$83+EX84*$O$84+EX85*$O$85+EX86*$O$86+EX87*$O$87+EX88*$O$88+EX89*$O$89+EX90*$O$90+EX91*$O$91+EX92*$O$92+EX93*$O$93+EX94*$O$94+EX95*$O$95+EX96*$O$96+EX97*$O$97+EX98*$O$98+EX99*$O$99+EX100*$O$100+EX102*$O$102+EX103*$O$103+EX104*$O$104+EX105*$O$105+EX106*$O$106+EX107*$O$107+EX108*$O$108+EX109*$O$109+EX110*$O$110+EX111*$O$111+EX112*$O$112+EX101*$O$101 -> 501.2484 | EY116: =EY5*$O$5+EY6*$O$6+EY7*$O$7+EY8*$O$8+EY9*$O$9+EY10*$O$10+EY11*$O$11+EY12*$O$12+EY13*$O$13+EY14*$O$14+EY15*$O$15+EY16*$O$16+EY17*$O$17+EY18*$O$18+EY19*$O$19+EY20*$O$20+EY21*$O$21+EY22*$O$22+EY23*$O$23+EY24*$O$24+EY25*$O$25+EY26*$O$26+EY27*$O$27+EY28*$O$28+EY29*$O$29+EY30*$O$30+EY31*$O$31+EY32*$O$32+EY33*$O$33+EY34*$O$34+EY35*$O$35+EY36*$O$36+EY37*$O$37+EY38*$O$38+EY39*$O$39+EY40*$O$40+EY41*$O$41+EY42*$O$42+EY43*$O$43+EY44*$O$44+EY45*$O$45+EY46*$O$46+EY47*$O$47+EY48*$O$48+EY49*$O$49+EY50*$O$50+EY51*$O$51+EY52*$O$52+EY53*$O$53+EY54*$O$54+EY55*$O$55+EY56*$O$56+EY57*$O$57+EY58*$O$58+EY59*$O$59+EY60*$O$60+EY61*$O$61+EY62*$O$62+EY63*$O$63+EY64*$O$64+EY65*$O$65+EY66*$O$66+EY67*$O$67+EY68*$O$68+EY69*$O$69+EY70*$O$70+EY71*$O$71+EY72*$O$72+EY73*$O$73+EY74*$O$74+EY75*$O$75+EY76*$O$76+EY77*$O$77+EY78*$O$78+EY79*$O$79+EY80*$O$80+EY81*$O$81+EY82*$O$82+EY83*$O$83+EY84*$O$84+EY85*$O$85+EY86*$O$86+EY87*$O$87+EY88*$O$88+EY89*$O$89+EY90*$O$90+EY91*$O$91+EY92*$O$92+EY93*$O$93+EY94*$O$94+EY95*$O$95+EY96*$O$96+EY97*$O$97+EY98*$O$98+EY99*$O$99+EY100*$O$100+EY102*$O$102+EY103*$O$103+EY104*$O$104+EY105*$O$105+EY106*$O$106+EY107*$O$107+EY108*$O$108+EY109*$O$109+EY110*$O$110+EY111*$O$111+EY112*$O$112+EY101*$O$101 -> 1167.06 | EZ116: 9984 | FA116: 524.75 | FB116: 781.26 | FC116: 705.05 | FD116: 1098.81 | FE116: 1163.1 | FF116: 1243.4016 | FG116: 936.9684 | FH116: 673.26 | FI116: 589.5 | FJ116: 1187.9712 | FK116: 1435 | FL116: 329.916 | FM116: 912.6954 | FN116: 552.66 | FO116: 289.26 | FP116: 514.44 | FQ116: 2064.39 | FR116: 403.96 | FS116: 768 | FT116: 1047.5 | FU116: 12455.9952 | FV116: 2194.5 | FW116: 1465.3056 | FX116: 485.22 | FY116: 442.25 | FZ116: 264.12 | GE116: =SUM(P116:GC116) -> 212468.591
B117: الخصم | P117: =P116*7/100 -> 32.111688 | Q117: =Q116*7/100 -> 78.2544 | R117: =R116*12/100 -> 287.634816 | S117: =S116*7/100 -> 32.151672 | T117: 29.4 | U117: 42.727272 | V117: =V116*10/100 -> 208.476 | W117: 44.352 | X117: =X116*6/100 -> 40.122576 | Y117: 64.26 | Z117: 40.653648 | AA117: 83.708688 | AB117: 57.872808 | AC117: =AC116*10/100 -> 127.39536 | AD117: =AD116*12/100 -> 374.728032 | AE117: 27.712944 | AF117: 13.4064 | AG117: 28.258776 | AH117: 69.365184 | AI117: 60.000444 | AJ117: 112.8288 | AK117: 51.380112 | AL117: 77.4984 | AM117: =AM116*7/100 -> 141.838368 | AN117: =AN116*17.81/100 -> 2778.274512 | AO117: 38.821608 | AP117: 40.4964 | AQ117: 78.740508 | AR117: 15.96 | AS117: 82.185432 | AT117: 13.4988 | AU117: 384.215244 | AV117: 7.392 | AW117: =AW116*12/100 -> 312.168912 | AX117: 12.474 | AY117: 34.314 | AZ117: 45.719436 | BA117: 63.1176 | BB117: 125.560386 | BC117: 27.9986 | BD117: 13.44 | BE117: 14.784 | BF117: 52.5168 | BG117: =BG116*6.6/100 -> 53.4375468 | BH117: 23.097312 | BI117: =BI116*12/100 -> 341.974272 | BJ117: 63.103992 | BK117: 36.897 | BL117: 44.163 | BM117: =BM116*12/100 -> 374.728032 | BN117: 17.2564 | BO117: 36.96336 | BP117: 31.40928 | BQ117: =BQ116*14.68/100 -> 843.2433046 | BR117: 63.6384 | BS117: 61.522818 | BT117: 110.922 | BU117: 9.9624 | BV117: 60.9924 | BW117: 22.176 | BX117: =BX116*4.6/100 -> 20.2491816 | BY117: =BY116*12/100 -> 352.224 | BZ117: =BZ116*7/100 -> 27.678 | CA117: 12.908448 | CB117: 33.512808 | CC117: 41.578992 | CD117: =CD116*10/100 -> 238.2 | CE117: =CE116*5.2/100 -> 34.31844 | CF117: =CF116*9.1/100 -> 139.42383 | CG117: =CG116*7/100 -> 32.2875 | CH117: =CH116*7/100 -> 125.6332 | CI117: =CI116*12/100 -> 1374.371232 | CJ117: =CJ116*7/100 -> 29.568 | CK117: =CK116*7/100 -> 41.128248 | CL117: 15.96 | CM117: 20.8908 | CN117: 30.4962 | CO117: 34.0676 | CP117: 56.0238 | CQ117: 22.911 | CR117: 37.962792 | CS117: 99.6646 | CT117: =CT116*6.55/100 -> 50.70093 | CU117: =CU116*12/100 -> 157.678272 | CV117: =CV116*7/100 -> 57.3762 | CW117: =CW116*6.1/100 -> 41.2785414 | CX117: =CX116*7/100 -> 60.9924 | CY117: 40.4376 | CZ117: 13.44 | DA117: 13.4988 | DB117: 57.526 | DC117: 35.105616 | DD117: 36.503712 | DE117: 23.097312 | DF117: 64.810368 | DG117: 52.812144 | DH117: 20.8908 | DI117: =DI116*7/100 -> 273.23919 | DJ117: =DJ116*7/100 -> 54.516168 | DK117: 13.856472 | DL117: 194.209344 | DM117: 65.226 | DN117: 38.9088 | DO117: =DO116*6.8/100 -> 51.8295456 | DP117: =DP116*6.4/100 -> 53.00736 | DQ117: =DQ116*7/100 -> 74.55 | DR117: =DR116*7/100 -> 67.108944 | DS117: =DS116*7/100 -> 43.995 | DT117: 54.432 | DU117: 13.86 | DV117: =DV116*16.982/100 -> 1735.648706 | DW117: =DW116*7.1/100 -> 104.5049 | DX117: =DX116*7/100 -> 74.4324 | DY117: =DY116*7/100 -> 53.76 | DZ117: =DZ116*7/100 -> 20.2482 | EA117: =EA116*6.9/100 -> 99.68292 | EB117: =EB116*7/100 -> 17.552808 | EC117: =EC116*7/100 -> 33.6882 | ED117: 47.8968 | EE117: 47.67 | EF117: 135.094638 | EG117: 46.403 | EH117: 27.712944 | EI117: 74.55 | EJ117: =EJ116*6.9/100 -> 95.9865624 | EK117: =EK116*6.9/100 -> 121.8281526 | EL117: =EL116*5/100 -> 33 | EM117: =EM116*6.1/100 -> 64.7619432 | EN117: =EN116*7/100 -> 51.5676 | EO117: 15.96 | EP117: 26.922 | EQ117: =EQ116*8/100 -> 128.4048 | ER117: =ER116*8.15/100 -> 117.28176 | ES117: =ES116*7/100 -> 20.79 | ET117: =ET116*7/100 -> 19.4544 | EU117: 106.255296 | EV117: =EV116*6.9/100 -> 41.68152 | EW117: =EW116*7/100 -> 67.6368 | EX117: =EX116*7/100 -> 35.087388 | EY117: =EY116*9.2/100 -> 107.36952 | EZ117: =EZ116*14.66/100 -> 1463.6544 | FA117: =FA116*7/100 -> 36.7325 | FB117: 54.6882 | FC117: =FC116*6.39/100 -> 45.052695 | FD117: =FD116*7/100 -> 76.9167 | FE117: 81.417 | FF117: 87.038112 | FG117: 65.587788 | FH117: 47.1282 | FI117: 41.265 | FJ117: 83.157984 | FK117: =FK116*12/100 -> 172.2 | FL117: =FL116*4/100 -> 13.19664 | FM117: =FM116*7/100 -> 63.888678 | FN117: 38.6862 | FO117: 20.2482 | FP117: 36.0108 | FQ117: =FQ116*6.8/100 -> 140.37852 | FR117: =FR116*5/100 -> 20.198 | FS117: =FS116*7/100 -> 53.76 | FT117: 73.325 | FU117: =FU116*14.658/100 -> 1825.799776 | FV117: =FV116*12.05/100 -> 264.43725 | FW117: =FW116*10/100 -> 146.53056 | FX117: =FX116*7.1/100 -> 34.45062 | FY117: =FY116*7/100 -> 30.9575 | FZ117: 18.4884 | GE117: 21617.27832
B118: الصافي | P118: =P116-P117 -> 426.626712 | Q118: 1039.6656 | R118: 2109.321984 | S118: 427.157928 | T118: 390.6 | U118: 567.662328 | V118: 1876.284 | W118: 589.248 | X118: 628.587024 | Y118: 853.74 | Z118: 540.112752 | AA118: 1112.129712 | AB118: 768.881592 | AC118: 1146.55824 | AD118: 2748.005568 | AE118: 368.186256 | AF118: 178.1136 | AG118: 375.438024 | AH118: 921.566016 | AI118: 797.148756 | AJ118: 1499.0112 | AK118: 682.621488 | AL118: 1029.6216 | AM118: 1884.424032 | AN118: 12821.24549 | AO118: 515.772792 | AP118: 538.0236 | AQ118: 1046.123892 | AR118: 212.04 | AS118: 1091.892168 | AT118: 179.3412 | AU118: 5104.573956 | AV118: 98.208 | AW118: 2289.238688 | AX118: 165.726 | AY118: 455.886 | AZ118: 607.415364 | BA118: 838.5624 | BB118: 1668.159414 | BC118: 371.9814 | BD118: 178.56 | BE118: 196.416 | BF118: 697.7232 | BG118: 756.2222532 | BH118: 306.864288 | BI118: 2507.811328 | BJ118: 838.381608 | BK118: 490.203 | BL118: 586.737 | BM118: 2748.005568 | BN118: 229.2636 | BO118: 491.08464 | BP118: 417.29472 | BQ118: 4900.920895 | BR118: 845.4816 | BS118: 817.374582 | BT118: 1473.678 | BU118: 132.3576 | BV118: 810.3276 | BW118: 294.624 | BX118: 419.9504184 | BY118: 2582.976 | BZ118: 367.722 | CA118: 171.497952 | CB118: =CB116-CB117 -> 445.241592 | CC118: 552.406608 | CD118: 2143.8 | CE118: 625.65156 | CF118: 1392.70617 | CG118: 428.9625 | CH118: 1669.1268 | CI118: 10078.72237 | CJ118: 392.832 | CK118: 546.418152 | CL118: 212.04 | CM118: 277.5492 | CN118: 405.1638 | CO118: 452.6124 | CP118: 744.3162 | CQ118: 304.389 | CR118: 504.362808 | CS118: 1324.1154 | CT118: 723.35907 | CU118: 1156.307328 | CV118: 762.2838 | CW118: 635.4188586 | CX118: 810.3276 | CY118: 537.2424 | CZ118: 178.56 | DA118: 179.3412 | DB118: 764.274 | DC118: 466.403184 | DD118: 484.977888 | DE118: 306.864288 | DF118: 861.052032 | DG118: 701.647056 | DH118: 277.5492 | DI118: 3630.17781 | DJ118: 724.286232 | DK118: 184.093128 | DL118: 2580.209856 | DM118: 866.574 | DN118: 516.9312 | DO118: 710.3696544 | DP118: 775.23264 | DQ118: 990.45 | DR118: 891.590256 | DS118: 584.505 | DT118: 723.168 | DU118: 184.14 | DV118: 8484.871294 | DW118: 1367.3951 | DX118: 988.8876 | DY118: 714.24 | DZ118: 269.0118 | EA118: 1344.99708 | EB118: 233.201592 | EC118: 447.5718 | ED118: 636.3432 | EE118: 633.33 | EF118: 1794.828762 | EG118: 616.497 | EH118: 368.186256 | EI118: 990.45 | EJ118: 1295.123038 | EK118: 1643.797247 | EL118: 627 | EM118: 996.9092568 | EN118: =EN116-EN117 -> 685.1124 | EO118: 212.04 | EP118: 357.678 | EQ118: 1476.6552 | ER118: 1321.75824 | ES118: 276.21 | ET118: 258.4656 | EU118: 1411.677504 | EV118: 562.39848 | EW118: 898.6032 | EX118: 466.161012 | EY118: 1059.69048 | EZ118: 8520.3456 | FA118: 488.0175 | FB118: 726.5718 | FC118: 659.997305 | FD118: 1021.8933 | FE118: 1081.683 | FF118: 1156.363488 | FG118: 871.380612 | FH118: 626.1318 | FI118: 548.235 | FJ118: 1104.813216 | FK118: 1262.8 | FL118: 316.71936 | FM118: 848.806722 | FN118: 513.9738 | FO118: 269.0118 | FP118: 478.4292 | FQ118: 1924.01148 | FR118: 383.762 | FS118: 714.24 | FT118: 974.175 | FU118: 10630.19542 | FV118: 1930.06275 | FW118: 1318.77504 | FX118: 450.76938 | FY118: 411.2925 | FZ118: 245.6316 | GE118: =SUM(P118:GC118) -> 190851.3127
AD120: =98.96+4305 -> 4403.96
Q121: =COUNT(Q5:Q112) -> 2 | R121: =COUNT(R5:R112) -> 2 | S121: 2 | T121: 1 | U121: 4 | V121: 6 | W121: 1 | X121: 3 | Y121: 2 | Z121: 3 | AA121: 3 | AB121: 2 | AC121: 5 | AD121: 1 | AE121: 1 | AF121: 1 | AG121: 2 | AH121: 4 | AI121: 2 | AJ121: 4 | AK121: 3 | AL121: 6 | AM121: 9 | AN121: 3 | AO121: 2 | AP121: 1 | AQ121: 9 | AR121: 1 | AS121: 4 | AT121: 1 | AU121: 17 | AV121: 1 | AW121: 3 | AX121: 1 | AY121: 3 | AZ121: 4 | BA121: 3 | BB121: 5 | BC121: 2 | BD121: 1 | BE121: 1 | BF121: 4 | BG121: 3 | BH121: 1 | BI121: 4 | BJ121: 2 | BK121: 3 | BL121: 2 | BM121: 1 | BN121: 1 | BO121: 1 | BP121: 2 | BQ121: 5 | BR121: 4 | BS121: 7 | BT121: 5 | BU121: 1 | BV121: 3 | BW121: 1 | BX121: 2 | BY121: 1 | BZ121: 2 | CA121: 1 | CB121: 2 | CC121: 1 | CD121: =COUNT(CD5:CD112) -> 2 | CE121: 2 | CF121: 3 | CG121: 1 | CH121: 5 | CI121: 30 | CJ121: 1 | CK121: 4 | CL121: 1 | CM121: 2 | CN121: 1 | CO121: 3 | CP121: 3 | CQ121: 3 | CR121: 3 | CS121: 5 | CT121: 4 | CU121: 3 | CV121: 2 | CW121: 3 | CX121: 1 | CY121: 2 | CZ121: 1 | DA121: 1 | DB121: 3 | DC121: 1 | DD121: 3 | DE121: 1 | DF121: 2 | DG121: 2 | DH121: 2 | DI121: 1 | DJ121: 1 | DK121: 1 | DL121: 5 | DM121: 2 | DN121: 1 | DO121: 3 | DP121: 2 | DQ121: 2 | DR121: 3 | DS121: 2 | DT121: 3 | DU121: 1 | DV121: 1 | DW121: 3 | DX121: 2 | DY121: 1 | DZ121: 1 | EA121: 4 | EB121: 1 | EC121: 2 | ED121: 2 | EE121: 2 | EF121: 3 | EG121: 3 | EH121: 1 | EI121: 2 | EJ121: 4 | EK121: 6 | EL121: 2 | EM121: 5 | EN121: 3 | EO121: 1 | EP121: =COUNT(EP5:EP112) -> 2 | EQ121: 4 | ER121: 7 | ES121: 1 | ET121: 1 | EU121: 2 | EV121: 2 | EW121: 4 | EX121: 4 | EY121: 2 | EZ121: 1 | FA121: 2 | FB121: 5 | FC121: 5 | FD121: 3 | FE121: 4 | FF121: 5 | FG121: 5 | FH121: 2 | FI121: 2 | FJ121: 1 | FK121: 1 | FL121: 1 | FM121: 2 | FN121: 2 | FO121: 1 | FP121: 2 | FQ121: 5 | FR121: 5 | FS121: 1 | FT121: 2 | FU121: 4 | FV121: 1 | FW121: 2 | FX121: 4 | FY121: 2 | FZ121: 2
X126: نل
